Cogmind - Beta 14 @@@ ROGUE MODE // 2025.03.07 @ 08:11:13 Player: Darby Result: Destroyed Tau Ceti IV! Performance ------------- Evolutions (9) 4500 Regions Visited (32) 6400 Robots Destroyed (219) 1095 Value Destroyed (10203) 10203 Prototype IDs (100) 2000 Alien Tech Used (10) 2000 Bonus (38200) 38200 TOTAL SCORE: 64398 Bonus ------- Triggered Max Security 2000 High Alert Combat Kills 336 Follower Combat Kills 7501 Entered Garrisons 800 Used RIF Installer 2500 Network Hubs Disabled 800 Aligned with FarCom 300 Built Enhanced Grunts 300 A7 Reached Mainframe 300 Met R17 at Cetus 500 Used Core Reset Matrix 3000 Met R17 at Research 2000 Met MAIN.C 5000 Hacked MAIN.C 300 Met Architect 300 Started Test 138-B 500 Started Test 138-C 8000 Destroyed A2 1000 Win 3000 Friendly Fire -237 Cogmind --------- Core Integrity 1227/1600 Matter 270/300 Energy 34/340 System Corruption 0% Temperature Cool (20) Movement Flying (18) Location Subspace Parts ------- > --- POWER (2) -------- Particle Reactor > --- PROPULSION (7) --- Cooled Nuclear Pulse Thruster Cooled Nuclear Pulse Thruster Cooled Nuclear Pulse Thruster Impulse Thruster Array > --- UTILITY (13) ----- Experimental Terrain Scan Processor Advanced Reaction Control System Centrium Medium Armor Plating Experimental Force Field Hacking Suite Improved Hacking Suite Advanced Hacking Suite Improved System Shield > --- WEAPON (3) ------- (None) > --- INVENTORY (5) ---- Light Quantum Reactor Advanced Datajack Core Stripper Peak State ------------ > --- POWER ------------ Micro Antimatter Reactor Light Quantum Reactor > --- PROPULSION ------- Cooled Nuclear Pulse Thruster Cooled Nuclear Pulse Thruster Cooled Nuclear Pulse Thruster Cooled Nuclear Pulse Thruster Impulse Thruster Array Cooled Q-thruster > --- UTILITY ---------- Experimental Terrain Scan Processor Improved Armor Integrity Analyzer Microactuators Advanced Reaction Control System Advanced Phase Shifter Centrium Medium Armor Plating Experimental Force Field Hacking Suite Improved Hacking Suite Advanced Hacking Suite Improved System Shield Relay Coupler [NC] Relay Coupler [Swarmer] > --- WEAPON ----------- Sigix Broadsword > --- INVENTORY -------- Light Quantum Reactor Core Stripper [Rating: 179] Favorites ----------- Power Light Nuclear Core Engine Ion Engine Power Core Light Nuclear Core Reactor Micro Antimatter Reactor Propulsion Cooled VTOL Module Treads Light Treads Leg Potential Leg Wheel Compact Wheel Flight Unit Cooled VTOL Module Utility Relay Coupler [NC] Device Structural Scanner Storage Large Storage Unit Processor Experimental Terrain Scan Processor Hackware Relay Coupler [NC] Protection Centrium Medium Armor Plating Weapon Improved Remote Datajack Energy Gun Improved Arc Projector Energy Cannon Enhanced Nova Cannon Ballistic Gun Shotgun Ballistic Cannon Battle Cannon Launcher Rocket Launcher Special Weapon Improved Remote Datajack Impact Weapon Core Stripper Slashing Weapon Scythe Piercing Weapon Plasma Lance Special Melee Weapon Advanced Datajack Build | -11 -10 -10 -10 -9 -8 -8 -7 -7 -7 -7 -7 -7 -7 -7 -5 -5 -5 -5 -5 -4 -4 -4 -4 -3 -3 -3 -2 -2 -2 -1 -1 -1 ------- Run | Yrd Mat Min Exi Min Mat Gar Fac Was Fac Gar Sto Gar Rec Scr Fac Ext Cet Arc Hub Fac Was Fac Gar Res Arm Lab Res Qua Sec Acc Com Ac0 Slots Evolved 18 | . . . . . 4 . 2 . . . . . . . 4 . . . . 2 . . . 2 . . 2 . . 2 . . Power 1 | . . . . . . . . . . . . . . . . . . . . . . . . . . . . . . 1 . . Propulsion 5 | . . . . . 3 . . . . . . . . . 1 . . . . 1 . . . . . . . . . . . . Utility 11 | . . . . . 1 . 2 . . . . . . . 3 . . . . 1 . . . 2 . . 2 . . . . . Weapon 1 | . . . . . . . . . . . . . . . . . . . . . . . . . . . . . . 1 . . Parts Attached 583 | 9 75 13 2 14 21 36 33 . 37 16 3 11 5 3 54 12 5 6 2 28 4 47 12 24 19 . 45 6 7 4 29 1 Power 43 | 1 1 . . 1 3 5 2 . 2 . . 1 . . 3 . . . . 1 . 4 . 2 2 . 3 3 . . 9 . Engine 7 | 1 1 . . 1 1 3 . . . . . . . . . . . . . . . . . . . . . . . . . . Core 12 | . . . . . 2 2 2 . 2 . . 1 . . 3 . . . . . . . . . . . . . . . . . Reactor 24 | . . . . . . . . . . . . . . . . . . . . 1 . 4 . 2 2 . 3 3 . . 9 . Propulsion 122 | 4 39 3 . . 8 7 15 . 2 2 . 3 1 . 8 1 . . . 6 . 3 2 5 . . 10 . 1 . 2 . Treads 21 | . 18 . . . 2 1 . . . . . . . . . . . . . . . . . . . . . . . . . . Leg 14 | 2 2 . . . 6 4 . . . . . . . . . . . . . . . . . . . . . . . . . . Wheel 30 | 2 19 3 . . . 2 . . . 1 . 1 1 . . . . . . . . . 1 . . . . . . . . . Hover . | . . . . . . . . . . . . . . . . . . . . . . . . . . . . . . . . . Flight 57 | . . . . . . . 15 . 2 1 . 2 . . 8 1 . . . 6 . 3 1 5 . . 10 . 1 . 2 . Utility 192 | 2 3 . 1 2 4 9 14 . 5 9 2 6 1 3 27 2 2 5 2 6 1 23 9 15 11 . 15 2 2 . 9 . Device 36 | 1 1 . . 1 2 3 1 . 2 . . . . . 2 . 1 2 . 2 . 3 . 1 1 . 4 . . . 9 . Storage 16 | 1 2 . . . . . 1 . . 1 . 2 . 3 2 . . . . . . . 1 2 . . 1 . . . . . Processor 6 | . . . . . . . . . . . . . . . 1 . . . . 1 . 2 . . 1 . . . 1 . . . Hackware 115 | . . . . . . 3 12 . 3 8 2 4 1 . 22 2 . 3 2 2 . 15 8 10 9 . 8 1 . . . . Protection 19 | . . . 1 1 2 3 . . . . . . . . . . 1 . . 1 1 3 . 2 . . 2 1 1 . . . Artifact . | . . . . . . . . . . . . . . . . . . . . . . . . . . . . . . . . . Weapon 226 | 2 32 10 1 11 6 15 2 . 28 5 1 1 3 . 16 9 3 1 . 15 3 17 1 2 6 . 17 1 4 4 9 1 Energy Gun 36 | 1 3 1 . . 2 6 1 . 5 3 . 1 1 . 4 3 2 . . . 1 1 . . 1 . . . . . . . Energy Cannon 11 | . . . . . . . . . . . . . . . . . . . . . . . . . . . 6 . . 2 3 . Ballistic Gun 32 | 1 16 5 . 5 4 1 . . . . . . . . . . . . . . . . . . . . . . . . . . Ballistic Cannon 29 | . . . . 4 . . . . 8 . . . . . 3 . . . . 7 . 6 . . 1 . . . . . . . Launcher 8 | . 1 3 . 2 . 1 . . . . . . . . . . . . . . . . . . 1 . . . . . . . Special Weapon 48 | . 12 1 . . . 4 1 . 4 2 1 . 1 . 7 6 1 1 . . 1 4 . . . . 2 . . . . . Impact Weapon 3 | . . . . . . . . . . . . . . . . . . . . . . . . . . . . . . . 2 1 Slashing Weapon 39 | . . . . . . 3 . . 11 . . . 1 . 2 . . . . 8 1 6 1 . . . . 1 2 1 2 . Piercing Weapon 10 | . . . . . . . . . . . . . . . . . . . . . . . . 1 3 . 6 . . . . . Special Melee Weapon 10 | . . . 1 . . . . . . . . . . . . . . . . . . . . 1 . . 3 . 2 1 2 . Unidentified Prototypes 13 | . . . . . . . 3 . . . . . . . . . 2 . . . . . . . . . 2 1 2 . 3 . Corrupted Parts 1 | . . . . . . . . . . . . . . . . . . . . . . . . . . . . . 1 . . . System Corruption 10 | . . . . . . . . . . . . . . . . . . . . . . . . . . . . . 10 . . . Parts Lost 37 | . 1 1 . 2 5 7 1 . 1 . . 2 . . 3 1 1 . . . 1 1 . 2 . . . . 1 . 5 2 Power 7 | . . . . 1 . 3 . . . . . 1 . . 1 . . . . . . . . . . . . . . . 1 . Propulsion 7 | . . . . . 2 2 . . . . . . . . . . . . . . . . . 1 . . . . . . . 2 Utility 13 | . 1 . . . 1 . 1 . 1 . . . . . 2 1 . . . . 1 1 . . . . . . 1 . 3 . Weapon 10 | . . 1 . 1 2 2 . . . . . 1 . . . . 1 . . . . . . 1 . . . . . . 1 . Highest Loss Streak 2 | . 1 1 . 2 2 2 1 . 1 . . 1 . . 1 1 1 . . . 1 1 . 1 . . . . 1 . 2 2 To Critical Strikes 1 | . . . . . . . . . . . . . . . 1 . . . . . . . . . . . . . . . . . Average Slot Usage (%) 93 | . 97 100 100 100 95 99 95 100 96 98 100 97 99 95 94 88 81 92 94 91 85 91 84 84 85 . 81 88 85 77 74 58 Engine 2 | . 14 14 14 14 1 5 . . . . . . . . . . . . . . . . . . . . . . . . . . Core 3 | . . . . . 7 3 7 7 7 7 7 6 7 7 4 5 5 5 5 1 . . . . . . . . . . . . Reactor 1 | . . . . . . . . . . . . . . . . . . . . 3 5 5 5 3 4 . 4 4 4 4 5 4 Leg 2 | . 2 . . . 37 31 . . . . . . . . . . . . . . . . . . . . . . . . . . Wheel 4 | . 22 27 28 28 . 2 . . . 2 7 2 6 7 . . . . . . . . . . . . . . . . . . Flight 24 | . . . . . . . 37 38 38 35 30 34 30 30 32 28 29 29 29 30 31 30 31 27 23 . 23 26 26 24 23 21 Device 3 | . 11 14 14 . 8 5 . . 6 . . . . . 2 1 . 4 5 5 5 2 . 2 4 . 4 8 4 4 3 8 Storage 6 | . 14 14 14 14 9 9 7 7 7 7 7 7 7 6 5 5 5 5 5 5 5 5 5 4 4 . 4 4 4 4 2 . Processor 1 | . . . . . . . . . . . . . . . . . . . . . . 4 5 4 4 . 4 4 6 8 7 4 Hackware 22 | . . . . . . 6 25 30 19 28 30 29 29 26 34 34 29 34 35 29 22 29 21 25 33 . 29 31 31 24 23 16 Protection 1 | . . . . 13 6 5 . . . . . . . . . . . . . 3 5 2 5 3 . . 2 3 3 4 4 4 Energy Gun 1 | . 2 . . . 8 4 . . 1 1 . 4 5 . . . . . . . 3 . . . . . . . . . . . Ballistic Gun 2 | . 18 16 . 10 9 1 . . . . . . . . . . . . . . . . . . . . . . . . . . Special Weapon 4 | . 7 1 . . . 4 6 7 5 5 6 . 3 7 4 4 4 5 5 5 2 4 5 . . . . . . . . . Slashing Weapon 4 | . . . . . . 6 7 7 6 7 7 7 4 7 4 5 5 5 5 4 5 4 4 3 . . . 3 3 3 3 . Peak Build Rating 179 | 7 12 13 16 17 45 52 57 53 56 58 55 56 53 53 90 86 79 91 87 119 109 118 112 125 122 117 149 156 166 166 179 137 Average Rating 69 | 6 9 11 12 16 41 44 48 53 49 55 54 49 51 49 78 81 76 86 85 105 104 110 106 108 115 117 120 150 155 156 157 122 On Entrance 75 | . 7 10 13 16 17 42 51 53 53 54 55 54 52 50 53 83 76 77 87 85 109 104 112 108 114 117 117 140 155 162 158 119 Naked Turns . | . . . . . . . . . . . . . . . . . . . . . . . . . . . . . . . . . Heaviest Build 233 | 13 92 93 93 93 97 112 42 22 30 93 93 92 93 210 42 35 35 36 35 47 48 53 226 233 35 33 46 51 47 60 62 50 Greatest Support 101 | 32 40 40 32 32 101 86 31 28 34 34 16 34 21 16 46 45 45 35 45 57 49 57 57 51 55 51 61 61 62 62 62 62 Greatest Overweight (x) 13 | . 5 2 2 2 1 6 1 . 1 5 5 5 5 13 8 1 . 1 . 1 1 1 4 4 . . . . . . 1 1 Average Overweight (x) . | . 1 2 2 2 . 1 . . . . 5 . 4 7 . . . . . . . . . . . . . . . . . . Largest Inventory Capacity 35 | 8 25 25 25 25 25 25 25 10 10 25 25 25 25 35 35 15 15 15 15 15 15 15 35 35 15 15 15 15 15 15 15 5 Average Capacity 18 | 7 22 25 25 25 25 25 10 10 10 15 25 15 25 29 15 15 15 15 15 15 15 15 24 17 15 15 15 15 15 15 10 5 Most Carried 34 | 8 15 25 25 25 25 25 25 9 10 13 13 25 25 34 33 15 15 15 14 15 15 15 33 29 15 15 15 15 15 15 15 4 Average Carried 15 | 5 13 21 24 24 23 24 9 9 9 10 11 13 24 22 13 14 14 14 12 14 15 14 20 7 9 15 13 14 14 12 9 3 Final Capacity 35 | 8 25 25 25 25 25 25 10 10 10 25 25 25 25 35 15 15 15 15 15 15 15 15 35 35 15 15 15 15 15 15 5 5 Final Carried 34 | 8 15 25 25 25 25 25 9 9 9 13 13 25 25 34 15 14 15 15 13 15 15 15 33 33 15 15 14 15 15 12 4 4 Class Distribution -------------------- 21% | Commander-Sprinter 15% | Mutant 13% | Bothacker-Sprinter 12% | Botlord-Sprinter 10% | Botlord-Mutant 7% | Commander-Mutant 4% | Bothacker-Mutant 3% | Scavenger-Mutant 3% | Hacker-Sprinter Dominant Class ---------------- Mutant | -10/Materials Mutant | -10/Mines Mutant | -10/Exiles Mutant | -9/Mines Scavenger-Mutant | -8/Materials Bothacker-Mutant | -8/Garrison Bothacker-Sprinter | -7/Factory Bothacker-Sprinter | -7/Waste Bothacker-Sprinter | -7/Factory Commander-Sprinter | -7/Garrison Commander-Mutant | -7/Storage Commander-Sprinter | -7/Garrison Commander-Mutant | -7/Recycling Botlord-Mutant | -7/Scraptown Commander-Sprinter | -5/Factory Commander-Sprinter | -5/Extension Commander-Sprinter | -5/Cetus Commander-Sprinter | -5/Archives Commander-Sprinter | -5/Hub_04(d) Botlord-Sprinter | -4/Factory Botlord-Sprinter | -4/Waste Botlord-Sprinter | -4/Factory Botlord-Sprinter | -4/Garrison Commander-Sprinter | -3/Research Bothacker-Sprinter | -3/Armory Bothacker-Sprinter | -3/Lab Hacker-Scout | -2/Research Hacker-Scout | -2/Quarantine Hacker-Assassin | -2/Section 7 Hacker-Assassin | -1/Access Hacker-Sprinter | -1/Command Hacker-Mutant | -1/Access_0 Resources | -11 -10 -10 -10 -9 -8 -8 -7 -7 -7 -7 -7 -7 -7 -7 -5 -5 -5 -5 -5 -4 -4 -4 -4 -3 -3 -3 -2 -2 -2 -1 -1 -1 ----------- Run | Yrd Mat Min Exi Min Mat Gar Fac Was Fac Gar Sto Gar Rec Scr Fac Ext Cet Arc Hub Fac Was Fac Gar Res Arm Lab Res Qua Sec Acc Com Ac0 Matter Collected 11743 | 353 1444 387 . 764 497 605 717 . 503 546 95 271 299 33 1314 369 72 116 55 407 69 1085 510 275 190 . 434 6 . 100 227 . Remotely . | . . . . . . . . . . . . . . . . . . . . . . . . . . . . . . . . . Salvage Created 8932 | 200 1334 262 . 613 961 422 239 . 569 80 79 . 429 . 1036 276 80 169 132 390 . 461 50 73 207 . 360 . . . 437 73 Parts 445 | 16 68 21 . 44 42 20 23 . 37 6 3 . 14 . 36 13 5 12 5 22 . 25 2 7 5 . 13 . . . 6 . Haulers Intercepted 14 | . 2 . . . . . . . 4 . . . . . 4 . . . 1 . . . . . . . 3 . . . . . Recyclers Shooed 15 | . 6 2 . 2 . . . . . . . . 4 . . 1 . . . . . . . . . . . . . . . . Parts Field Recycled . | . . . . . . . . . . . . . . . . . . . . . . . . . . . . . . . . . Retrieved Matter . | . . . . . . . . . . . . . . . . . . . . . . . . . . . . . . . . . Parts Self-Destructed . | . . . . . . . . . . . . . . . . . . . . . . . . . . . . . . . . . Prevented . | . . . . . . . . . . . . . . . . . . . . . . . . . . . . . . . . . Kills | -11 -10 -10 -10 -9 -8 -8 -7 -7 -7 -7 -7 -7 -7 -7 -5 -5 -5 -5 -5 -4 -4 -4 -4 -3 -3 -3 -2 -2 -2 -1 -1 -1 ------- Run | Yrd Mat Min Exi Min Mat Gar Fac Was Fac Gar Sto Gar Rec Scr Fac Ext Cet Arc Hub Fac Was Fac Gar Res Arm Lab Res Qua Sec Acc Com Ac0 Combat Hostiles Destroyed 84 | . 17 4 . 10 17 14 2 . 1 2 . . 3 . 3 1 1 . . . . 2 2 . 1 . . . . . 3 1 Melee 21 | . . . . . . 3 2 . 1 2 . . 3 . 3 . . . . . . 2 2 . . . . . . . 3 . Guns 48 | . 17 1 . 2 17 10 . . . . . . . . . . 1 . . . . . . . . . . . . . . . Cannons 5 | . . . . 5 . . . . . . . . . . . . . . . . . . . . . . . . . . . . AOE 7 | . . 3 . 3 . 1 . . . . . . . . . . . . . . . . . . . . . . . . . . Classes Destroyed 16 | 3 6 . . 1 2 1 . . . . . . 1 . . 1 . . . . . 1 . . . . . . . . . . Worker 29 | 2 4 2 . 9 2 . 4 . 1 . . . . . 2 . . . . . . 3 . . . . . . . . . . Builder 17 | . 4 2 . . . . 2 . 1 . . . 2 . 3 . . . . . . 1 . 1 . . 1 . . . . . Tunneler 14 | 5 1 1 . 6 . . . . . . . . . . . . . . . . . 1 . . . . . . . . . . Hauler 14 | . 2 . . . . . . . 4 . . . . . 4 . . . 1 . . . . . . . 3 . . . . . Recycler 23 | 1 7 2 . 2 1 . . . 2 . 1 . 3 . 1 1 . . . 1 . 1 . . . . . . . . . . Operator 8 | . 2 . . . . . . . . . . . . . . . . 5 . . . . . 1 . . . . . . . . Drone 1 | . . . . . . . . . . . . . . . . . . . . . . 1 . . . . . . . . . . Watcher 30 | . 3 . . . . . 2 . 4 . . . . . 7 2 . . 1 6 . 3 . 1 . . 1 . . . . . Swarmer 15 | . 3 4 . . . 4 1 . 1 . . . . . . . . . . . . . 2 . . . . . . . . . Grunt 40 | . 14 . . 9 8 5 1 . . 1 . . . . 2 . . . . . . . . . . . . . . . . . Brawler 3 | . . . . . 1 . . . . . . . . . . . . . . . . . . . 2 . . . . . . . Duelist 3 | . . . . 1 1 1 . . . . . . . . . . . . . . . . . . . . . . . . . . Sentry 11 | . . . . . 7 1 . . . . . . . . 1 . . . . . . 1 . . . . . . . . 1 . Hunter 1 | . . . . . . . . . . . . . 1 . . . . . . . . . . . . . . . . . . . Programmer 6 | . . . . . . 3 . . . 1 . . 2 . . . . . . . . . . . . . . . . . . . Behemoth 1 | . . . . . . . . . . . . . . . . 1 . . . . . . . . . . . . . . . . Cetus Guard 1 | . . . . . . . . . . . . . . . . . 1 . . . . . . . . . . . . . . . Combat Programmer 2 | . . . . . . . . . . . . . . . . . . . . . . . . . . . . . . . 2 . Best Kill Streak 8 | 5 4 3 . 8 6 3 2 . 2 1 1 . 2 . 2 2 1 3 1 1 . 3 2 1 1 . 2 . . . 2 1 Combat Bots Only 5 | . 3 3 . 4 5 3 1 . 1 1 . . 1 . 1 1 1 . . . . 1 2 . 1 . . . . . 2 1 Max Kills in Single Turn 5 | 1 2 3 . 5 1 2 1 . 1 1 1 . 1 . 1 1 1 1 1 1 . 1 1 1 1 . 1 . . . 1 1 Gunslinging . | . . . . . . . . . . . . . . . . . . . . . . . . . . . . . . . . . Exploded 3 | . . 3 . 2 . 1 . . . . . . . . . . . . . . . . . . . . . . . . . . Melee 1 | . . . . . . 1 1 . 1 1 . . 1 . 1 . . . . . . 1 1 . . . . . . . 1 . Uniques/NPCs Destroyed 1 | . . . . . . . . . . . . . . . . . . . . . . . . . . . . . . . . 1 A2 (-1/Access_0) Combat | -11 -10 -10 -10 -9 -8 -8 -7 -7 -7 -7 -7 -7 -7 -7 -5 -5 -5 -5 -5 -4 -4 -4 -4 -3 -3 -3 -2 -2 -2 -1 -1 -1 -------- Run | Yrd Mat Min Exi Min Mat Gar Fac Was Fac Gar Sto Gar Rec Scr Fac Ext Cet Arc Hub Fac Was Fac Gar Res Arm Lab Res Qua Sec Acc Com Ac0 Hostile Shots Fired 734 | . 58 9 . 34 82 89 34 . 20 35 3 12 13 . 49 17 12 . 2 18 . 35 13 12 4 . 5 15 46 22 79 16 Missed 296 | . 16 1 . 8 16 28 18 . 9 21 2 6 5 . 22 3 8 . . 12 . 19 5 4 2 . 4 10 25 7 38 7 Damage Taken 9051 | . 526 63 . 489 1059 1208 211 . 192 167 37 96 135 . 546 234 72 12 54 84 89 343 127 663 111 . 28 121 672 149 1358 205 Core 1448 | . 55 14 . 99 158 143 78 . 42 81 18 5 17 . 155 62 11 . . . . 68 47 171 22 . 28 28 48 . . 98 Absorbed by Shields 405 | . . . . . . . . . . . . . 17 . . 84 47 11 13 . . . . . . . . . . . 233 . Redirected to Shielding 121 | . . . . . . . . . . . . . . . . . . . . . . . . . . . . 27 94 . . . Regen/Repaired (Parts) 2001 | . . . . . . . . . . . . . . 96 178 26 . . 8 . 5 109 . 380 . . 178 . 65 91 865 . Core Remaining (%) 73 | 100 . . . 32 . 45 . . . . . . . 65 . . . . 77 . . . 90 . . 85 . . 92 . . 76 Volleys Fired 1132 | 23 224 31 . 85 60 70 65 . 42 51 7 20 33 2 132 73 9 8 8 20 8 72 53 5 12 . 8 . . 7 4 . Largest 2 | 2 2 2 . 2 2 2 1 . 1 1 1 1 1 1 1 1 1 1 1 1 1 1 1 1 1 . 1 . . 1 1 . Hottest 121 | 60 100 100 . 62 121 88 65 . 65 65 7 65 65 5 65 65 65 7 7 57 65 57 7 7 65 . 120 . . 120 120 . Shots Fired 1368 | 44 308 41 . 117 116 104 65 . 41 52 7 20 33 2 132 73 9 8 8 20 7 72 53 5 12 . 8 . . 7 4 . Gun 704 | 44 265 36 . 35 116 81 9 . 24 7 . 2 5 . 9 43 9 . . . 7 . . . 12 . . . . . . . Cannon 131 | . . . . 79 . . . . 7 . . . . . 3 . . . . 10 . 13 . . . . 8 . . 7 4 . Launcher 10 | . . 2 . 3 . 5 . . . . . . . . . . . . . . . . . . . . . . . . . . Special 523 | . 43 3 . . . 18 56 . 10 45 7 18 28 2 120 30 . 8 8 10 . 59 53 5 . . . . . . . . Kinetic 530 | 23 203 34 . 114 78 45 . . 7 . . . . . 3 . . . . 10 . 13 . . . . . . . . . . Thermal 224 | 21 105 5 . . 38 36 . . . . . . . . . . . . . . . . . . . . 8 . . 7 4 . Explosive 10 | . . 2 . 3 . 5 . . . . . . . . . . . . . . . . . . . . . . . . . . Electromagnetic 127 | . . . . . . . 9 . 24 7 . 2 5 . 9 43 9 . . . 7 . . . 12 . . . . . . . Robot Hit Streak 29 | 8 11 7 . 7 12 16 15 . 7 29 6 12 6 4 11 20 13 9 14 3 2 10 11 3 6 . 7 . . . . . Robot Miss Streak 11 | 2 7 4 . 7 4 4 2 . 4 2 2 1 3 . 2 11 1 . 1 2 6 2 2 1 1 . . . . . . . Penetration Max . | . . . . . . . . . . . . . . . . . . . . . . . . . . . . . . . . . Secondary Targets 3 | . . . . . 1 2 . . . . . . . . . . . . . . . . . . . . . . . . . . Max Gunslinging Chain 1 | . . . . . 1 1 . . . . . . . . . . . . . . . . . . . . . . . . . . Shots Hit Robots 1080 | 28 131 29 4 65 91 73 63 . 39 41 7 10 41 2 152 56 7 14 10 24 1 67 41 12 23 . 18 . 1 2 27 1 Core Hits 327 | 13 72 17 . 34 49 27 7 . 14 1 1 . 6 . 23 11 5 5 2 9 1 8 2 . 5 . 5 . . . 10 . Critical Kills 1 | . 1 . . . . . . . . . . . . . . . . . . . . . . . . . . . . . . . Critical Parts Destroyed 3 | . 1 1 . . 1 . . . . . . . . . . . . . . . . . . . . . . . . . . . Critical Strikes 26 | . 2 1 . 2 6 3 1 . . . . . 2 . 4 1 . . . 2 . . . . . . 1 . . . 1 . Burn 8 | . . . . . 5 3 . . . . . . . . . . . . . . . . . . . . . . . . . . Destroy 4 | . 2 1 . . 1 . . . . . . . . . . . . . . . . . . . . . . . . . . . Blast 2 | . . . . 2 . . . . . . . . . . . . . . . . . . . . . . . . . . . . Sever 11 | . . . . . . . 1 . . . . . 2 . 4 1 . . . 2 . . . . . . . . . . 1 . Impale 1 | . . . . . . . . . . . . . . . . . . . . . . . . . . . 1 . . . . . Melee Attacks 786 | . . . 4 . . 29 29 . 80 28 1 11 30 . 135 8 16 10 7 102 1 110 11 40 24 . 40 10 8 7 44 1 Kinetic 2 | . . . . . . . . . . . . . . . . . . . . . . . . . . . . . . . 1 1 Impact . | . . . . . . . . . . . . . . . . . . . . . . . . . . . . . . . . . Slashing 704 | . . . . . . 29 29 . 80 28 1 11 30 . 135 8 16 10 7 102 1 110 11 35 . . . 8 7 6 40 . Piercing 46 | . . . . . . . . . . . . . . . . . . . . . . . . 2 10 . 32 2 . . . . Sneak Attacks 122 | . . . 4 . . 3 8 . 8 2 1 . 8 . 28 2 . 5 2 3 . 13 2 5 12 . 10 . 1 2 3 . Combat Hostiles 30 | . . . . . . 3 1 . . 2 . . 1 . 12 2 . . . . . 5 2 1 . . . . . . 1 . Follow-up Attacks . | . . . . . . . . . . . . . . . . . . . . . . . . . . . . . . . . . Damage Inflicted 21403 | 277 1991 661 . 1566 1370 1483 745 . 1162 280 65 . 857 . 3027 645 96 457 195 1062 4 1510 159 344 131 . 615 . . 142 2559 . Guns 6252 | 277 1978 420 . 383 1370 814 103 . 228 54 . . 17 . 72 305 96 . . . 4 . . . 131 . . . . . . . Cannons 893 | . . . . 808 . . . . 41 . . . . . . . . . . . . . . . . . 44 . . . . . Explosions 1139 | . 13 241 . 375 . 404 . . 47 . . . . . . 59 . . . . . . . . . . . . . . . . Melee 13119 | . . . . . . 265 642 . 846 226 65 . 840 . 2955 281 . 457 195 1062 . 1510 159 344 . . 571 . . 142 2559 . Ramming . | . . . . . . . . . . . . . . . . . . . . . . . . . . . . . . . . . Kinetic 4926 | 123 1835 398 . 1191 891 391 . . 41 . . . . . . . . . . . . . . . . . . . . . 56 . Thermal 1384 | 154 156 22 . . 479 423 . . 47 . . . . . . 59 . . . . . . . . . . 44 . . . . . Explosive 1020 | . . 241 . 375 . 404 . . . . . . . . . . . . . . . . . . . . . . . . . . Electromagnetic 1010 | . . . . . . . 103 . 228 54 . . 17 . 72 305 96 . . . 4 . . . 131 . . . . . . . Impact . | . . . . . . . . . . . . . . . . . . . . . . . . . . . . . . . . . Slashing 12492 | . . . . . . 265 642 . 846 226 65 . 840 . 2955 281 . 457 195 1062 . 1510 159 344 . . . . . 142 2503 . Piercing 571 | . . . . . . . . . . . . . . . . . . . . . . . . . . . 571 . . . . . Highest Corruption 14 | . . . . . . . 2 10 10 6 6 6 6 . 3 3 3 3 . . 8 8 3 . . . 2 2 14 . 5 . Average Corruption 4 | . . . . . . . 2 3 5 5 6 6 6 . 2 3 3 2 . . 8 3 3 . . . 2 2 13 . 3 . Corruption Purged 13 | . . . . . . . . . 5 . . . . . . . . 3 . . . 5 . . . . . . . . . . Corruption Blocked . | . . . . . . . . . . . . . . . . . . . . . . . . . . . . . . . . . Effects 328 | . . . . . . . 10 . 41 23 8 29 45 . 37 37 9 2 . . 5 44 20 . . . 11 1 6 . . . Message Errors 84 | . . . . . . . 3 . 8 4 3 5 15 . 6 11 2 . . . 2 15 5 . . . 3 . 2 . . . Matter Fused 75 | . . . . . . . 2 . 6 5 2 6 13 . 10 7 2 . . . . 15 3 . . . 2 1 1 . . . Heat Flow Errors 40 | . . . . . . . 2 . 8 2 2 6 6 . 6 2 2 1 . . . 1 1 . . . 1 . . . . . Energy Discharges 49 | . . . . . . . 1 . 11 4 . 4 4 . 5 9 1 . . . . 6 3 . . . 1 . . . . . Parts Rejected 5 | . . . . . . . . . 1 . . . 1 . . . . . . . 2 . 1 . . . . . . . . . Parts Fused 2 | . . . . . . . . . . . . . . . 2 . . . . . . . . . . . . . . . . . Data Loss (minor) 37 | . . . . . . . 1 . 3 3 1 5 3 . 4 3 1 . . . . 5 4 . . . 4 . . . . . Data Loss (major) 21 | . . . . . . . . . 3 4 . 1 2 . 1 4 1 . . . . 2 2 . . . . . 1 . . . Misfires 1 | . . . . . . . . . . 1 . . . . . . . . . . . . . . . . . . . . . . Alerts 10 | . . . . . . . 1 . . . . 2 1 . 3 1 . 1 . . . . 1 . . . . . . . . . Misdirections 2 | . . . . . . . . . . . . . . . . . . . . . . . . . . . . . 2 . . . Weapon Failures 2 | . . . . . . . . . 1 . . . . . . . . . . . 1 . . . . . . . . . . . Overload Shots . | . . . . . . . . . . . . . . . . . . . . . . . . . . . . . . . . . Overflow Damage 1516 | . . . . 34 . 30 131 . 43 31 . . 165 . 423 9 . 45 33 122 . 326 . 124 . . . . . . . . Projectiles 24 | . . . . 23 . . . . 1 . . . . . . . . . . . . . . . . . . . . . . . Explosions 11 | . . . . 11 . . . . . . . . . . . . . . . . . . . . . . . . . . . . Melee 1481 | . . . . . . 30 131 . 42 31 . . 165 . 423 9 . 45 33 122 . 326 . 124 . . . . . . . . Knockbacks 9 | . . . . 9 . . . . . . . . . . . . . . . . . . . . . . . . . . . . Impact . | . . . . . . . . . . . . . . . . . . . . . . . . . . . . . . . . . Kinetic 8 | . . . . 8 . . . . . . . . . . . . . . . . . . . . . . . . . . . . Secondary 1 | . . . . 1 . . . . . . . . . . . . . . . . . . . . . . . . . . . . Self-Inflicted Damage . | . . . . . . . . . . . . . . . . . . . . . . . . . . . . . . . . . Shots . | . . . . . . . . . . . . . . . . . . . . . . . . . . . . . . . . . Rammed 1 | . 1 . . . . . . . . . . . . . . . . . . . . . . . . . . . . . . . Targets Rammed 1 | . 1 . . . . . . . . . . . . . . . . . . . . . . . . . . . . . . . Kicked . | . . . . . . . . . . . . . . . . . . . . . . . . . . . . . . . . . Crushed . | . . . . . . . . . . . . . . . . . . . . . . . . . . . . . . . . . Highest Temperature 436 | 60 80 40 . 54 421 43 436 2 276 288 258 181 189 . 227 111 287 157 177 246 62 211 226 7 47 . 233 227 106 178 178 158 Average Temperature 39 | 25 21 14 . 13 144 14 50 2 88 95 132 72 72 . 33 23 60 84 99 43 14 18 30 1 23 . 51 104 37 79 93 113 Received Heat Transfer 1712 | . 297 . . 102 477 252 21 . . 21 18 39 . . 132 60 4 . 21 . . 51 9 9 . . 9 . 27 . 127 36 Effects 9 | . . . . . 5 . 2 . . 1 . . . . . . . . . . . . 1 . . . . . . . . . Shutdowns 1 | . . . . . 1 . . . . . . . . . . . . . . . . . . . . . . . . . . . Energy Bleed 6 | . . . . . 2 . 2 . . 1 . . . . . . . . . . . . 1 . . . . . . . . . Short Circuit 1 | . . . . . 1 . . . . . . . . . . . . . . . . . . . . . . . . . . . Damage (minor) 1 | . . . . . 1 . . . . . . . . . . . . . . . . . . . . . . . . . . . Siege Activations . | . . . . . . . . . . . . . . . . . . . . . . . . . . . . . . . . . Robots Corrupted 2 | . . . . . . . . . 1 . . . . . . . . . . . . . . . 1 . . . . . . . Combat Hostiles 1 | . . . . . . . . . . . . . . . . . . . . . . . . . 1 . . . . . . . Parts Fried 3 | . . . . . . . . . 1 . . . . . . . . . . . . . . . 2 . . . . . . . Impact Corruptions . | . . . . . . . . . . . . . . . . . . . . . . . . . . . . . . . . . Robots Melted 1 | . . . . . . . . . . . . . . . . 1 . . . . . . . . . . . . . . . . Combat Hostiles 1 | . . . . . . . . . . . . . . . . 1 . . . . . . . . . . . . . . . . Parts Melted 10 | . . . . . 7 1 . . . . . . . . 1 1 . . . . . . . . . . . . . . . . Heat Transferred 3684 | 350 375 50 . . 1554 1218 . . 50 . . . . . . 50 . . . . . . . . . . 37 . . . . . Parts Sabotaged . | . . . . . . . . . . . . . . . . . . . . . . . . . . . . . . . . . Parts Stolen . | . . . . . . . . . . . . . . . . . . . . . . . . . . . . . . . . . Parts Stripped 24 | . . . . . . . . . . . . . . . . . . . . . . . . . . . . . . . . 24 Power Chain Reactions 2 | . . . . . . . . . 1 . . . . . . 1 . . . . . . . . . . . . . . . . Alert | -11 -10 -10 -10 -9 -8 -8 -7 -7 -7 -7 -7 -7 -7 -7 -5 -5 -5 -5 -5 -4 -4 -4 -4 -3 -3 -3 -2 -2 -2 -1 -1 -1 ------- Run | Yrd Mat Min Exi Min Mat Gar Fac Was Fac Gar Sto Gar Rec Scr Fac Ext Cet Arc Hub Fac Was Fac Gar Res Arm Lab Res Qua Sec Acc Com Ac0 Peak Influence 1964 | 40 1008 588 . 190 419 1139 614 191 311 988 845 1964 1000 . 399 380 164 229 850 440 167 198 438 426 443 . 163 1705 1695 1100 562 . Initial 1100 | . 26 379 . . 74 116 597 191 133 104 481 536 883 . . 164 51 65 12 408 43 88 1 246 44 . . 2 1100 1100 464 . Average 372 | 20 523 438 . 55 262 676 495 191 143 684 599 1580 774 . 227 92 90 195 355 188 116 72 328 131 200 . 57 1658 1615 698 216 . Maximum Alert Level 5 | . 3 2 . . 2 4 2 . 1 3 3 5 3 . 1 1 . 1 3 2 . . 2 2 2 . . 5 5 4 2 . Low Security (%) 43 | 100 14 . . 100 22 4 . 100 84 6 . . . . 27 91 100 22 47 56 100 100 23 72 40 . 100 . . . 68 . Level 1 23 | . 26 57 . . 75 15 6 . 15 10 . . . . 72 8 . 77 15 36 . . 27 22 56 . . . . . . . Level 2 17 | . 20 42 . . 2 39 93 . . 27 79 4 35 . . . . . 12 7 . . 49 5 2 . . . . 77 31 . Level 3 11 | . 39 . . . . 39 . . . 54 20 10 64 . . . . . 25 . . . . . . . . . . 19 . . Level 4 . | . . . . . . 2 . . . . . 21 . . . . . . . . . . . . . . . . . 2 . . Level 5 2 | . . . . . . . . . . . . 63 . . . . . . . . . . . . . . . . . . . . High Security . | . . . . . . . . . . . . . . . . . . . . . . . . . . . . . . . . . Max Security 1 | . . . . . . . . . . . . . . . . . . . . . . . . . . . . 99 99 . . . Squads Dispatched 116 | . 5 . . . 5 . 12 . 4 . 2 . . . 12 . . . 8 15 . 21 . 3 6 . 3 12 7 . 1 . Investigation 38 | . 4 . . . . . 3 . 2 . . . . . 5 . . . 3 10 . 8 . 2 . . 1 . . . . . Extermination 20 | . . . . . . . 2 . 2 . . . . . 2 . . . . 4 . 4 . . 3 . 2 . . . 1 . Reinforcement 27 | . 1 . . . 1 . 5 . . . 1 . . . 4 . . . 4 1 . 5 . 1 3 . . . 1 . . . Assault 21 | . . . . . . . 2 . . . . . . . . . . . 1 . . . . . . . . 12 6 . . . Garrison 10 | . . . . . 4 . . . . . 1 . . . 1 . . . . . . 4 . . . . . . . . . . Intercept . | . . . . . . . . . . . . . . . . . . . . . . . . . . . . . . . . . Searches Triggered . | . . . . . . . . . . . . . . . . . . . . . . . . . . . . . . . . . Construction Impeded 3 | . . . . . 1 . . . . . . . . . 2 . . . . . . . . . . . . . . . . . Haulers Reinforced 4 | . . . . . . . 1 . . . 1 . . . . . . . . . . 2 . . . . . . . . . . Active Scanning Responses . | . . . . . . . . . . . . . . . . . . . . . . . . . . . . . . . . . Cargo Convoy Interrupts 3 | . . . . . . . 1 . . . . . . . 1 . . . . 1 . . . . . . . . . . . . Stealth | -11 -10 -10 -10 -9 -8 -8 -7 -7 -7 -7 -7 -7 -7 -7 -5 -5 -5 -5 -5 -4 -4 -4 -4 -3 -3 -3 -2 -2 -2 -1 -1 -1 --------- Run | Yrd Mat Min Exi Min Mat Gar Fac Was Fac Gar Sto Gar Rec Scr Fac Ext Cet Arc Hub Fac Was Fac Gar Res Arm Lab Res Qua Sec Acc Com Ac0 Distress Signals 36 | . 2 . . 1 1 . . . . . 2 . . . 2 1 2 . 5 1 . 5 . 5 6 . 1 . . 1 1 . Communications Jammed 318 | . . . . . . . . . . . . . . . 8 228 30 . . 7 . 13 . 4 . . 18 . 9 1 . . Distress Signals 318 | . . . . . . . . . . . . . . . 8 228 30 . . 7 . 13 . 4 . . 18 . 9 1 . . Times Spotted 624 | . 31 8 . 11 20 29 35 5 23 20 10 41 7 . 59 28 10 1 15 50 6 62 14 37 18 . 14 10 29 7 14 10 Peak Tracking Total 28 | . 5 3 . 3 3 5 5 5 3 2 3 5 3 . 6 3 5 . 4 4 4 7 4 7 6 . 5 17 28 7 8 9 Tactical Retreats 68 | . 6 . . 1 . 3 6 . 5 . . 1 . . 7 2 . . 3 6 . 15 . 4 1 . 4 1 2 . 1 . Traps | -11 -10 -10 -10 -9 -8 -8 -7 -7 -7 -7 -7 -7 -7 -7 -5 -5 -5 -5 -5 -4 -4 -4 -4 -3 -3 -3 -2 -2 -2 -1 -1 -1 ------- Run | Yrd Mat Min Exi Min Mat Gar Fac Was Fac Gar Sto Gar Rec Scr Fac Ext Cet Arc Hub Fac Was Fac Gar Res Arm Lab Res Qua Sec Acc Com Ac0 Traps Triggered 52 | . 2 . . . . 1 2 . 5 1 . 9 . . 5 3 . . . 2 . 7 7 4 2 . 1 . 1 . . . Indirectly . | . . . . . . . . . . . . . . . . . . . . . . . . . . . . . . . . . Trap Hack Attempts . | . . . . . . . . . . . . . . . . . . . . . . . . . . . . . . . . . Triggered . | . . . . . . . . . . . . . . . . . . . . . . . . . . . . . . . . . Disarmed 2 | . . . . . . . . . . . . . . . . 2 . . . . . . . . . . . . . . . . Reprogrammed 5 | . . . . . . . . . . . . . . . . . . . 5 . . . . . . . . . . . . . Reused 3 | . . . . . . 1 . . . . . . . . . . . . 2 . . . . . . . . . . . . . Traps Extracted 4 | . . . . 4 . . . . . . . . . . . . . . . . . . . . . . . . . . . . Installed 4 | . . . . . . 4 . . . . . . . . . . . . . . . . . . . . . . . . . . Triggered 3 | . . . . . . 1 . . . . . . . . . . . . 2 . . . . . . . . . . . . . Most Traps Carried 4 | . . . . 4 4 4 . . . . . . . . . . . . . . . . . . . . . . . . . . Machines | -11 -10 -10 -10 -9 -8 -8 -7 -7 -7 -7 -7 -7 -7 -7 -5 -5 -5 -5 -5 -4 -4 -4 -4 -3 -3 -3 -2 -2 -2 -1 -1 -1 ---------- Run | Yrd Mat Min Exi Min Mat Gar Fac Was Fac Gar Sto Gar Rec Scr Fac Ext Cet Arc Hub Fac Was Fac Gar Res Arm Lab Res Qua Sec Acc Com Ac0 Machines Disabled 108 | . 41 2 . 4 . 4 1 . 1 5 1 8 . . 7 2 . 2 8 . . 2 4 1 6 . . 5 4 . . . Max in Single Turn 3 | . 3 1 . 1 . 1 . . 1 1 . 1 . . . 1 . . . . . . 1 . 1 . . 1 1 . . . Garrison Access 9 | . . . . . . . 2 . 2 . . . . . 2 . . . 1 . . . . 2 . . . . . . . . Garrison Relay 19 | . . . . . . 4 . . . 5 . 7 . . . . . . . . . . 3 . . . . . . . . . Network Hub 4 | . . . . . . . . . . . . . . . . . . . 4 . . . . . . . . . . . . . Machines Repaired . | . . . . . . . . . . . . . . . . . . . . . . . . . . . . . . . . . Machines Dismantled 1 | . . . . . . . . . . . . . . . . 1 . . . . . . . . . . . . . . . . Machines Sabotaged 3 | . . . . . . . . . . . . . . . . . . . 3 . . . . . . . . . . . . . Overloaded Fab Kills . | . . . . . . . . . . . . . . . . . . . . . . . . . . . . . . . . . Hacking | -11 -10 -10 -10 -9 -8 -8 -7 -7 -7 -7 -7 -7 -7 -7 -5 -5 -5 -5 -5 -4 -4 -4 -4 -3 -3 -3 -2 -2 -2 -1 -1 -1 --------- Run | Yrd Mat Min Exi Min Mat Gar Fac Was Fac Gar Sto Gar Rec Scr Fac Ext Cet Arc Hub Fac Was Fac Gar Res Arm Lab Res Qua Sec Acc Com Ac0 Machines Accessed 253 | . 9 . 5 1 1 2 18 . 25 4 3 1 13 2 25 22 3 . 10 32 . 23 2 16 6 . 12 . . 8 9 1 Terminals 144 | . 7 . . 1 . 2 6 . 18 4 2 1 4 . 11 21 3 . 10 14 . 8 2 7 3 . 6 . . 7 7 . Fabricators 23 | . . . . . . . 3 . 1 . . . . . 2 . . . . 6 . 5 . 1 3 . 2 . . . . . Repair Stations 10 | . . . . . . . . . . . . . . . 3 1 . . . 1 . 1 . 1 . . 2 . . . 1 . Recycling Units 32 | . 2 . . . . . 4 . 2 . . . 7 . 4 . . . . 4 . 4 . 3 . . 1 . . . 1 . Scanalyzers 8 | . . . . . . . 2 . . . . . . . 1 . . . . 3 . 1 . . . . . . . 1 . . Garrison Access 26 | . . . . . 1 . 3 . 4 . 1 . . . 4 . . . . 4 . 4 . 4 . . 1 . . . . . Total Hacks 882 | . 19 . 50 1 1 6 39 . 59 5 5 2 42 19 68 49 8 . 33 154 . 104 4 59 32 . 52 . . 25 42 4 Successful 591 | . 9 . 50 . 1 2 23 . 29 4 3 . 37 19 51 33 7 . 25 89 . 69 2 37 24 . 40 . . 14 19 4 Failed 290 | . 10 . . 1 . 4 16 . 30 1 2 2 5 . 16 16 1 . 8 65 . 35 2 22 8 . 12 . . 11 23 . Catastrophic 45 | . . . . 1 . . 5 . 6 . . . . . 2 1 . . . 12 . 5 . 5 2 . 1 . . 2 3 . Database Lockouts 1 | . . . . . . . . . . . . . . . 1 . . . . . . . . . . . . . . . . . Manual 349 | . 14 . 1 1 . . 19 . 33 . 1 . 14 . 30 16 1 . 15 65 . 47 . 28 13 . 25 . . 3 23 . Terminals 447 | . 17 . . 1 . 6 12 . 36 5 3 2 10 . 28 46 8 . 33 79 . 41 4 21 12 . 27 . . 22 34 . Fabricators 114 | . . . . . . . 5 . 4 . . . . . 7 . . . . 28 . 26 . 9 20 . 15 . . . . . Repair Stations 38 | . . . . . . . . . . . . . . . 11 3 . . . 3 . 6 . 5 . . 5 . . . 5 . Recycling Units 64 | . 2 . . . . . 7 . 5 . . . 7 . 10 . . . . 10 . 10 . 9 . . 1 . . . 3 . Scanalyzers 41 | . . . . . . . 6 . . . . . . . 4 . . . . 23 . 5 . . . . . . . 3 . . Garrison Access 80 | . . . . . 1 . 9 . 14 . 2 . . . 8 . . . . 11 . 16 . 15 . . 4 . . . . . Terminal Hacks 261 | . 6 . 50 . . 2 3 . 8 4 . . 26 19 12 21 7 . 19 28 . 11 2 4 3 . 12 . . 9 11 4 Record 98 | . . . 49 . . . . . . . . . 24 19 . . 6 . . . . . . . . . . . . . . . Part Schematic 5 | . 1 . . . . . . . . . . . . . . 1 . . 1 2 . . . . . . . . . . . . Robot Schematic 9 | . 2 . . . . . . . . . . . . . 1 1 . . 1 2 . 1 . 1 . . . . . . . . Robot Analysis 3 | . . . . . . . . . . . . . . . . . . . 1 1 . 1 . . . . . . . . . . Prototype ID Bank 15 | . . . . . . . . . 1 . . . 1 . 1 4 . . 3 . . 2 . . . . 1 . . . 2 . Open Door 16 | . . . . . . . . . . 1 . . . . . 10 1 . . . . . . . . . . . . 3 1 . Level Access Points 3 | . . . . . . . . . . . . . . . . . . . 1 . . . . . 1 . 1 . . . . . Branch Access Points 2 | . . . . . . . . . . . . . . . 1 . . . . . . . . . . . 1 . . . . . Emergency Access Points 2 | . . . . . . 1 . . . . . . . . . . . . . . . . 1 . . . . . . . . . Machine Index 8 | . . . . . . . . . . . . . . . 1 . . . 1 1 . 1 . 1 . . 1 . . 1 1 . Terminal Index 7 | . 1 . . . . . 1 . 1 . . . . . 1 . . . 1 . . . . . . . . . . 1 1 . Fabricator Index 3 | . . . . . . . . . 1 . . . . . . . . . . 1 . . . . 1 . . . . . . . Repair Station Index 1 | . . . . . . . . . . . . . . . 1 . . . . . . . . . . . . . . . . . Recycling Unit Index 3 | . . . . . . . . . . . . . . . . . . . . 1 . . . 1 . . . . . . 1 . Garrison Index 4 | . . . . . . . 1 . 1 . . . . . . . . . 1 1 . . . . . . . . . . . . Unreport Threat 14 | . . . . . . . 1 . . . . . . . 1 2 . . 1 2 . . . 1 . . . . . 3 3 . Locate Traps 11 | . 1 . . . . . . . 1 . . . . . . 1 . . . 5 . 1 . . . . 1 . . . 1 . Disarm Traps 1 | . . . . . . . . . . . . . . . . 1 . . . . . . . . . . . . . . . . Reprogram Traps 3 | . . . . . . . . . . . . . . . . . . . 3 . . . . . . . . . . . . . Maintenance Status 1 | . . . . . . . . . . . . . . . . . . . . . . . . . . . . . . 1 . . Investigation Status 1 | . . . . . . . . . . . . . . . . . . . . 1 . . . . . . . . . . . . Reinforcement Status 1 | . . . . . . . . . . . . . . . . . . . . 1 . . . . . . . . . . . . Recall Investigation 5 | . . . . . . . . . . . . . . . . . . . . 3 . 1 . . . . 1 . . . . . Recall Extermination 10 | . . . . . . . . . 1 . . . . . 1 . . . . 3 . 2 . . 1 . 2 . . . . . Recall Reinforcements 1 | . . . . . . . . . . . . . . . . . . . . . . 1 . . . . . . . . . . Hauler Manifests 6 | . . . . . . . . . 1 . . . . . 1 . . . 1 1 . 1 . . . . 1 . . . . . Registered Components 2 | . . . . . . . . . . . . . . . . . . . . 1 . . . . . . . . . . 1 . Registered Prototypes 1 | . . . . . . . . . . . . . . . . . . . . 1 . . . . . . . . . . . . Zone Layout 14 | . 1 . . . . . . . 1 . . . . . 3 1 . . 4 1 . . . . . . 3 . . . . . Garrison Registry 3 | . . . . . . 1 . . . 1 . . . . . . . . . . . . 1 . . . . . . . . . Patrol Navigation 1 | . . . . . . . . . . 1 . . . . . . . . . . . . . . . . . . . . . . Security Stations 1 | . . . . . . . . . . 1 . . . . . . . . . . . . . . . . . . . . . . Derelict Proto ID Bank 1 | . . . 1 . . . . . . . . . . . . . . . . . . . . . . . . . . . . . Release Object 1 | . . . . . . . . . . . . . 1 . . . . . . . . . . . . . . . . . . . Gate Test 138-A 1 | . . . . . . . . . . . . . . . . . . . . . . . . . . . . . . . . 1 Gate Test 138-B 1 | . . . . . . . . . . . . . . . . . . . . . . . . . . . . . . . . 1 Gate Test 138-C 2 | . . . . . . . . . . . . . . . . . . . . . . . . . . . . . . . . 2 Fabricator Hacks 67 | . . . . . . . 1 . 2 . . . . . 4 . . . . 13 . 11 . 8 16 . 12 . . . . . Network Status 1 | . . . . . . . . . . . . . . . . . . . . 1 . . . . . . . . . . . . Load Schematic 32 | . . . . . . . . . 1 . . . . . 2 . . . . 6 . 5 . 4 8 . 6 . . . . . Build 34 | . . . . . . . 1 . 1 . . . . . 2 . . . . 6 . 6 . 4 8 . 6 . . . . . Repair Station Hacks 24 | . . . . . . . . . . . . . . . 7 2 . . . . . 5 . 2 . . 4 . . . 4 . Scan Component 13 | . . . . . . . . . . . . . . . 4 1 . . . . . 3 . 1 . . 2 . . . 2 . Repair 11 | . . . . . . . . . . . . . . . 3 1 . . . . . 2 . 1 . . 2 . . . 2 . Recycling Unit Hacks 5 | . . . . . . . . . . . . . . . 5 . . . . . . . . . . . . . . . . . Report Inventory 2 | . . . . . . . . . . . . . . . 2 . . . . . . . . . . . . . . . . . Retrieve Components 3 | . . . . . . . . . . . . . . . 3 . . . . . . . . . . . . . . . . . Scanalyzer 30 | . . . . . . . 4 . . . . . . . 3 . . . . 15 . 5 . . . . . . . 3 . . Insert Component 17 | . . . . . . . 2 . . . . . . . 2 . . . . 8 . 2 . . . . . . . 3 . . Analyze 13 | . . . . . . . 2 . . . . . . . 1 . . . . 7 . 3 . . . . . . . . . . Garrison Access Hacks 48 | . . . . . 1 . 6 . 8 . 2 . . . 6 . . . . 5 . 9 . 9 . . 2 . . . . . Unlock Access 6 | . . . . . 1 . 1 . 1 . 1 . . . . . . . . . . 2 . . . . . . . . . . Seal Access 8 | . . . . . . . 2 . 2 . . . . . 2 . . . . . . . . 2 . . . . . . . . Coupler Status 34 | . . . . . . . 3 . 5 . 1 . . . 4 . . . . 5 . 7 . 7 . . 2 . . . . . Unauthorized Hacks 156 | . 3 . . . . . 9 . 11 . 1 . 11 . 14 10 . . 6 28 . 28 . 14 5 . 10 . . 2 4 . Terminals 62 | . 1 . . . . . 2 . 6 . 1 . 4 . 5 10 . . 6 7 . 5 . 3 2 . 5 . . 2 3 . Assimilate 20 | . . . . . . . . . 4 . . . . . 2 3 . . . 5 . 2 . . . . 3 . . . 1 . Botnet 28 | . 1 . . . . . 2 . 2 . 1 . 2 . 2 2 . . 2 2 . 2 . 2 2 . 2 . . 2 2 . Disrupt 1 | . . . . . . . . . . . . . . . . . . . 1 . . . . . . . . . . . . . Operators 3 | . . . . . . . . . . . . . . . 1 . . . . . . 1 . 1 . . . . . . . . Skim 7 | . . . . . . . . . . . . . 2 . . 5 . . . . . . . . . . . . . . . . Sabotage 3 | . . . . . . . . . . . . . . . . . . . 3 . . . . . . . . . . . . . Fabricators 21 | . . . . . . . 2 . 1 . . . . . 1 . . . . 5 . 6 . 1 3 . 2 . . . . . Prioritize 17 | . . . . . . . . . 1 . . . . . 1 . . . . 4 . 5 . 1 3 . 2 . . . . . Liberate 2 | . . . . . . . . . . . . . . . . . . . . 1 . 1 . . . . . . . . . . Recompile 2 | . . . . . . . 2 . . . . . . . . . . . . . . . . . . . . . . . . . Repair Stations 3 | . . . . . . . . . . . . . . . 1 . . . . 1 . 1 . . . . . . . . . . Mechanics 3 | . . . . . . . . . . . . . . . 1 . . . . 1 . 1 . . . . . . . . . . Recycling Units 45 | . 2 . . . . . 4 . 1 . . . 7 . 5 . . . . 9 . 9 . 6 . . 1 . . . 1 . Reject 13 | . . . . . . . 1 . . . . . . . 2 . . . . 4 . 4 . 2 . . . . . . . . Recyclers 4 | . . . . . . . . . . . . . . . 1 . . . . 1 . 1 . 1 . . . . . . . . Mask 19 | . . . . . . . 3 . 1 . . . . . 2 . . . . 4 . 4 . 3 . . 1 . . . 1 . Tunnel 9 | . 2 . . . . . . . . . . . 7 . . . . . . . . . . . . . . . . . . . Scanalyzers . | . . . . . . . . . . . . . . . . . . . . . . . . . . . . . . . . . Garrison Access 25 | . . . . . . . 1 . 3 . . . . . 2 . . . . 6 . 7 . 4 . . 2 . . . . . Restock 12 | . . . . . . . . . 1 . . . . . . . . . . 2 . 4 . 4 . . 1 . . . . . Eject 13 | . . . . . . . 1 . 2 . . . . . 2 . . . . 4 . 3 . . . . 1 . . . . . Data Cores Recovered 2 | . 1 . . . . . . . . . . . . . . . . . . . . . . 1 . . . . . . . . Used 1 | . 1 . . . . . . . . . . . . . . . . . . . . . . . . . . . . . . . Hacking Detections 157 | . 7 . . 1 . 2 15 . 23 1 3 1 4 . 21 9 2 . 5 20 . 15 1 8 3 . 7 . . 4 5 . Full Trace Events 15 | . . . . . . 1 . . . . . 1 . . 2 . . . . 6 . 5 . . . . . . . . . . Feedback Events . | . . . . . . . . . . . . . . . . . . . . . . . . . . . . . . . . . Feedback Blocked 1 | . . . . . . . . . . . . . . . . . . . . 1 . . . . . . . . . . . . Robot Schematics Acquired 9 | . 2 . . . . . . . . . . . . . 1 1 . . 1 2 . 1 . 1 . . . . . . . . Robots Built 67 | . . . . . . . 2 . 1 . . . . . 3 . . . . 9 . 20 . 14 16 . 2 . . . . . Authchips 15 | . . . . . . . 1 . 1 . . . . . . . . . . . . . . 4 8 . 1 . . . . . Time 1359 | . . . . . . . 67 . 40 . . . . . 124 . . . . 327 . 199 . 328 232 . 42 . . . . . Total Robot Build Rating 325 | . . . . . . . 8 . 1 . . . . . 13 . . . . 39 . 80 . 80 92 . 12 . . . . . Part Schematics Acquired 17 | . 1 . . . . . 2 . . . . . . . 1 1 . . 1 9 . 2 . . . . . . . . . . Parts Built 11 | . . . . . . . . . . . . . . . . . . . . 3 . 2 . . . . 6 . . . . . Authchips 5 | . . . . . . . . . . . . . . . . . . . . . . . . . . . 5 . . . . . Time 405 | . . . . . . . . . . . . . . . . . . . . 117 . 58 . . . . 230 . . . . . Total Part Build Rating 73 | . . . . . . . . . . . . . . . . . . . . 20 . 14 . . . . 39 . . . . . Parts Repaired 11 | . . . . . . . . . . . . . . . 3 1 . . . . . 2 . 1 . . 2 . . . 2 . Time 451 | . . . . . . . . . . . . . . . 105 44 . . . . . 159 . 36 . . 56 . . . 51 . Parts Recycled . | . . . . . . . . . . . . . . . . . . . . . . . . . . . . . . . . . Recycled Matter . | . . . . . . . . . . . . . . . . . . . . . . . . . . . . . . . . . Retrieved Matter . | . . . . . . . . . . . . . . . . . . . . . . . . . . . . . . . . . Retrieved Components 18 | . . . . . . . . . . . . . . . 18 . . . . . . . . . . . . . . . . . Parts Scanalyzed 13 | . . . . . . . 2 . . . . . . . 2 . . . . 8 . 1 . . . . . . . . . . Part Schematics Acquired 12 | . . . . . . . 2 . . . . . . . 1 . . . . 7 . 2 . . . . . . . . . . Parts Damaged 1 | . . . . . . . . . . . . . . . . . . . . 1 . . . . . . . . . . . . Bothacking | -11 -10 -10 -10 -9 -8 -8 -7 -7 -7 -7 -7 -7 -7 -7 -5 -5 -5 -5 -5 -4 -4 -4 -4 -3 -3 -3 -2 -2 -2 -1 -1 -1 ------------ Run | Yrd Mat Min Exi Min Mat Gar Fac Was Fac Gar Sto Gar Rec Scr Fac Ext Cet Arc Hub Fac Was Fac Gar Res Arm Lab Res Qua Sec Acc Com Ac0 Used RIF Installer 5 | . . . . . . 2 . . . 1 . 1 . . . . . . . . . . 1 . . . . . . . . . Coupler Efficiency 1 | . . . . . . . . . . 1 . . . . . . . . . . . . . . . . . . . . . . Threat Obfuscator 2 | . . . . . . . . . . . . 1 . . . . . . . . . . 1 . . . . . . . . . Signal Jammer 1 | . . . . . . 1 . . . . . . . . . . . . . . . . . . . . . . . . . . Robots Hacked 206 | . . . 4 . . 7 26 . 4 12 3 7 7 2 45 7 . 4 4 5 . 31 21 4 3 . 6 . 1 1 2 . Non-combat 60 | . . . 3 . . . 7 . 1 . . . 6 . 16 . . 4 3 5 . 6 . 2 2 . 4 . . 1 . . Combat 145 | . . . 1 . . 7 19 . 3 12 3 7 1 2 29 7 . . 1 . . 25 21 2 1 . 2 . 1 . 1 . Robot Hacks Applied 226 | . . . 4 . . 8 32 . 4 13 3 7 7 2 54 7 . 4 4 6 . 33 22 4 3 . 6 . 1 1 1 . parse_system 21 | . . . 4 . . . 3 . . . . . 1 2 4 . . . 1 1 . 2 1 1 1 . . . . . . . find_chute 2 | . . . . . . . . . . . . . . . 2 . . . . . . . . . . . . . . . . . drop_inventory 16 | . . . . . . . . . . . . . . . 9 . . . 1 1 . . . . . . 4 . . 1 . . recall_reinforcements 1 | . . . . . . . . . . . . . . . . . . . . . . 1 . . . . . . . . . . find_station 1 | . . . . . . . 1 . . . . . . . . . . . . . . . . . . . . . . . . . purge_threat 2 | . . . . . . . 1 . . . . . . . . . . . . 1 . . . . . . . . . . . . block_reporting 6 | . . . . . . . 1 . . . . . . . . . . . . 2 . 2 . . 1 . . . . . . . clear_recycling 4 | . . . . . . . 1 . . . . . . . 2 . . . . 1 . . . . . . . . . . . . locate_prototypes 1 | . . . . . . . . . . . . . . . . . . . . . . . . . . . . . 1 . . . scatter_targeting 3 | . . . . . . . 3 . . . . . . . . . . . . . . . . . . . . . . . . . overload_power 1 | . . . . . . . . . . . . 1 . . . . . . . . . . . . . . . . . . . . amplify_resonance 3 | . . . . . . . . . 1 . . . . . 1 . . . . . . 1 . . . . . . . . . . wipe_record 1 | . . . . . . . . . . . . . . . . . . . . . . 1 . . . . . . . . . . reboot_system 4 | . . . . . . . . . . . . . . . 2 . . . . . . 1 1 . . . . . . . . . overwrite_iff 34 | . . . . . . 4 5 . . 2 . 1 . . 3 2 . . . . . 12 4 1 . . . . . . . . streamctrl_high 2 | . . . . . . 1 . . . . . . . . 1 . . . . . . . . . . . . . . . . . formatsys_low 25 | . . . . . . . 6 . 1 . . . 6 . 5 . . 4 1 . . 1 . 1 . . . . . . . . formatsys_high 92 | . . . . . . 3 11 . 2 10 3 4 . . 24 5 . . 1 . . 11 15 1 1 . 1 . . . . . formatsys_deep 7 | . . . . . . . . . . 1 . 1 . . 1 . . . . . . 1 1 . . . 1 . . . 1 . Manual 1 | . . . . . . . . . . . . . . . . . . . . . . . . . . . . . . . 1 . Relay Couplers Released 145 | . . . . . . 16 3 . 11 19 . 29 . . 7 . . . 1 23 . 21 12 . . . 3 . . . . . Ejected 64 | . . . . . . . 3 . 11 . . . . . 7 . . . . 23 . 17 . . . . 3 . . . . . Machine Destruction 77 | . . . . . . 16 . . . 19 . 29 . . . . . . 1 . . . 12 . . . . . . . . . Programmers 4 | . . . . . . . . . . . . . . . . . . . . . . 4 . . . . . . . . . . Attached 79 | . . . . . . 3 10 . 2 8 2 4 1 . 17 2 . . 2 1 . 14 8 1 2 . 1 1 . . . . Fabnet Peak Effective % . | . . . . . . . . . . . . . . . . . . . . . . . . . . . . . . . . . Robots Rewired 50 | . . . . . . 1 . . . 6 . 3 23 . 4 7 . . . . . . . . 6 . . . . . . . Allies Hacked 19 | . . . . . . . . . 1 . . 1 1 . 2 . . . . 2 . 4 . 1 6 . 1 . . . . . Hacks Repelled 3 | . . . . . . . . . . . . . . . . . . . . . . 2 . . 1 . . . . . . . Allies | -11 -10 -10 -10 -9 -8 -8 -7 -7 -7 -7 -7 -7 -7 -7 -5 -5 -5 -5 -5 -4 -4 -4 -4 -3 -3 -3 -2 -2 -2 -1 -1 -1 -------- Run | Yrd Mat Min Exi Min Mat Gar Fac Was Fac Gar Sto Gar Rec Scr Fac Ext Cet Arc Hub Fac Was Fac Gar Res Arm Lab Res Qua Sec Acc Com Ac0 Total Allies 360 | . . 1 . . . 8 24 . 7 24 3 13 29 . 43 29 5 4 2 17 18 51 22 18 25 . 11 . . . 6 . Largest Group 34 | . . 1 . . . 3 13 . 3 23 19 15 20 20 23 33 34 27 27 14 18 10 18 20 17 . 5 . . . 3 . Highest-Rated Group 1495 | . . 31 . . . 105 313 . 148 761 616 530 290 290 598 1130 1495 1292 1367 343 656 376 983 955 1068 . 252 . . . 161 . Highest-Rated Ally 159 | . . 31 . . . 85 85 . 90 95 95 95 40 40 137 159 159 151 137 48 50 137 137 137 89 . 64 . . . 58 . Total Orders 122 | . . . . . . 2 29 . 3 3 2 . 4 . 29 27 . . 1 3 . 4 2 8 . . . 3 1 . 1 . STAY 67 | . . . . . . 1 17 . 2 2 1 . 2 . 15 14 . . . 3 . 2 1 6 . . . . . . 1 . FOLLOW 39 | . . . . . . 1 9 . 1 1 1 . 2 . 8 13 . . . . . 1 1 1 . . . . . . . . AID 11 | . . . . . . . 2 . . . . . . . 6 . . . 1 . . 1 . 1 . . . . . . . . DROP 1 | . . . . . . . 1 . . . . . . . . . . . . . . . . . . . . . . . . . EXPLORE 4 | . . . . . . . . . . . . . . . . . . . . . . . . . . . . 3 1 . . . Ally Attacks 1758 | . . 9 . . . 27 80 . . 56 64 197 41 . 140 169 126 19 146 42 64 136 75 174 153 . 39 . . . 1 . Total Damage 47609 | . . 103 . . . 372 1354 . . 2172 1361 4841 838 . 4949 4095 2544 454 4736 717 4076 3160 2246 4351 4040 . 1189 . . . 11 . Kills 311 | . . 3 . . . 6 18 . . 16 13 51 9 . 37 20 10 4 34 2 12 13 11 20 23 . 9 . . . . . Allies Corrupted 16 | . . . . . . . . . 1 . 2 . . . 2 1 . . 4 1 . 3 . . 2 . . . . . . . Allies Melted 2 | . . . . . . . . . . . . . . . . 1 . . 1 . . . . . . . . . . . . . Intel | -11 -10 -10 -10 -9 -8 -8 -7 -7 -7 -7 -7 -7 -7 -7 -5 -5 -5 -5 -5 -4 -4 -4 -4 -3 -3 -3 -2 -2 -2 -1 -1 -1 ------- Run | Yrd Mat Min Exi Min Mat Gar Fac Was Fac Gar Sto Gar Rec Scr Fac Ext Cet Arc Hub Fac Was Fac Gar Res Arm Lab Res Qua Sec Acc Com Ac0 Robot Analysis Total 3 | . . . . . . . . . . . . . . . . . . . 1 1 . 1 . . . . . . . . . . Derelict Logs Recovered 4 | . . 2 . 2 . . . . . . . . . . . . . . . . . . . . . . . . . . . . Drone Launches 4 | . . . . . . . . . . . . . . . . . . . . . . . . . . . . 3 1 . . . Drone Recoveries 1 | . . . . . . . . . . . . . . . . . . . . . . . . . . . . 1 . . . . Exploration | -11 -10 -10 -10 -9 -8 -8 -7 -7 -7 -7 -7 -7 -7 -7 -5 -5 -5 -5 -5 -4 -4 -4 -4 -3 -3 -3 -2 -2 -2 -1 -1 -1 ------------- Run | Yrd Mat Min Exi Min Mat Gar Fac Was Fac Gar Sto Gar Rec Scr Fac Ext Cet Arc Hub Fac Was Fac Gar Res Arm Lab Res Qua Sec Acc Com Ac0 Turns Passed 34057 | 164 2110 786 478 1195 833 1837 1779 19 1737 863 237 1122 1870 2855 3379 1591 325 449 308 2058 103 2361 907 1784 761 4 928 252 140 159 606 57 Spaces Moved 56147 | 75 944 416 359 625 207 788 4112 75 5022 1434 106 1207 926 1301 8008 1785 256 190 817 6624 181 7576 1020 4607 1960 15 2395 691 294 320 1450 361 Core 3 | 1 . . . . . . . . . . . . . . 2 . . . . . . . . . . . . . . . . . Treads 2 | . 1 1 . . . . . . . . . . . . . . . . . . . . . . . . . . . . . . Legs 1026 | 1 94 . . . 207 724 . . . . . . . . . . . . . . . . . . . . . . . . . . Wheels 5105 | 73 849 415 359 625 . 64 . . . 159 106 231 923 1301 . . . . . . . . . . . . . . . . . . Hover . | . . . . . . . . . . . . . . . . . . . . . . . . . . . . . . . . . Flight 50011 | . . . . . . . 4112 75 5022 1275 . 976 3 . 8006 1785 256 190 817 6624 181 7576 1020 4607 1960 15 2395 691 294 320 1450 361 Fastest Speed 5 | 50 100 130 130 130 108 125 25 25 11 11 175 11 175 100 5 11 11 24 11 5 19 6 6 22 20 28 5 5 5 5 5 5 Average Speed 39 | 99 127 130 130 130 146 176 28 25 23 39 175 52 175 213 21 25 23 36 23 21 31 22 58 26 27 28 23 20 18 18 17 9 Slowest Speed 450 | 120 320 320 130 130 180 190 109 25 88 175 175 175 286 295 450 97 24 94 24 95 90 95 294 294 28 28 29 21 21 20 89 93 Overloaded Moves 883 | . . . . . . 28 . . 1 13 . 1 . . 8 3 7 . 20 29 13 17 23 . 30 . 11 26 17 24 305 307 Propulsion Burnouts 2 | . . . . . . . . . . . . . . . . . . . . . . . . . . . . . . . . 2 Robots Hopped 403 | . . . . . . . 24 . 30 . . . . . 80 23 . . 20 64 . 112 . 15 . . 7 1 16 1 9 1 Cave-ins Triggered . | . . . . . . . . . . . . . . . . . . . . . . . . . . . . . . . . . Teleports 1 | . . . . . . . . . . . . . . . . . . . . . . . . . . . . . . . 1 . Exploration Rate (%) 61 | 5 98 60 71 78 14 61 66 73 86 82 31 73 99 60 77 96 79 97 63 85 85 67 68 61 78 6 40 77 21 13 31 35 Regions Visited 32 Branch Regions 16 Pre-discovered Areas 13 | . 2 2 1 1 . . . . . . . . 7 . . . . . . . . . . . . . . . . . . . Known Exits Taken 10 | . . . . . 1 . . . 1 . 1 . . . 1 . . . 1 . . 1 . 1 . 1 1 . 1 . . . Unknown Exits Taken 14 | 1 1 1 1 1 . . . . . . . . 1 1 . 1 1 1 . . . . . . 1 . . 1 . 1 1 . Scrap Searched 9 | . . . . 2 . . . . . . . . . 7 . . . . . . . . . . . . . . . . . . Spaces Dug 452 | . 4 15 . . . 12 11 . 49 2 . 1 4 . 76 1 15 4 3 71 1 85 . 27 5 . 29 4 3 11 19 . Terrain Destroyed 784 | . 259 26 . 39 . 34 11 . 53 2 . 1 4 . 76 1 15 4 3 71 1 85 . 27 5 . 29 4 3 12 19 . Melee 369 | . . . . . . 1 11 . 45 2 . 1 4 . 72 1 15 4 3 60 1 68 . 27 5 . 22 4 3 5 15 . Projectile 77 | . 9 . . 13 . . . . 5 . . . . . 4 . . . . 11 . 17 . . . . 7 . . 7 4 . AOE 338 | . 250 26 . 26 . 33 . . 3 . . . . . . . . . . . . . . . . . . . . . . . Terrain Rammed . | . . . . . . . . . . . . . . . . . . . . . . . . . . . . . . . . . Walls Destroyed . | . . . . . . . . . . . . . . . . . . . . . . . . . . . . . . . . . Machines Disabled . | . . . . . . . . . . . . . . . . . . . . . . . . . . . . . . . . . Actions | -11 -10 -10 -10 -9 -8 -8 -7 -7 -7 -7 -7 -7 -7 -7 -5 -5 -5 -5 -5 -4 -4 -4 -4 -3 -3 -3 -2 -2 -2 -1 -1 -1 --------- Run | Yrd Mat Min Exi Min Mat Gar Fac Was Fac Gar Sto Gar Rec Scr Fac Ext Cet Arc Hub Fac Was Fac Gar Res Arm Lab Res Qua Sec Acc Com Ac0 Total 65309 | 121 1428 607 370 885 625 1103 4624 74 5387 1665 153 1674 1107 1383 9299 2814 485 549 897 7043 213 7929 1304 5099 2150 14 2687 782 350 400 1708 380 Wait 5923 | 6 170 136 . 160 326 117 384 . 147 89 37 312 24 23 962 905 198 335 83 289 20 188 71 308 119 . 176 62 44 57 158 17 Move 55357 | 74 943 415 358 624 206 787 4064 74 4964 1433 105 1206 925 1300 7856 1744 255 189 780 6500 180 7359 1019 4578 1959 14 2381 688 266 317 1435 359 Hop 357 | . . . . . . . 24 . 27 . . . . . 71 17 . . 16 60 . 104 . 13 . . 6 1 11 1 5 1 Pick Up 353 | 9 8 11 3 2 5 32 6 . 10 14 . 16 2 51 25 . . . 1 16 . 13 26 63 9 . 9 7 7 . 8 . Fast Attach 121 | 6 1 . . . 5 2 6 . 3 1 . 4 1 2 16 1 3 4 . 8 2 12 2 17 2 . 12 1 . . 10 . Attach 121 | 1 1 1 . 2 7 8 6 . 4 2 . 2 1 . 13 2 . . . 3 . 7 6 4 9 . 11 1 6 7 16 1 Detach 68 | . . . . . . . 2 . . . . 2 . 1 15 1 1 1 . 6 . 5 4 2 2 . 7 1 1 4 12 1 Swap 349 | 2 73 12 2 12 9 26 21 . 30 13 3 5 3 1 25 9 2 2 2 17 2 28 4 3 8 . 22 4 2 . 7 . Drop 195 | . 7 1 3 . 7 28 17 . 10 3 . . 1 3 13 1 1 . . 17 . 4 . 41 2 . 15 7 5 . 9 . Fire 1132 | 23 224 31 . 85 60 70 65 . 42 51 7 20 33 2 132 73 9 8 8 20 8 72 53 5 12 . 8 . . 7 4 . Melee 786 | . . . 4 . . 29 29 . 80 28 1 11 30 . 135 8 16 10 7 102 1 110 11 40 24 . 40 10 8 7 44 1 Ram . | . . . . . . . . . . . . . . . . . . . . . . . . . . . . . . . . . Kick . | . . . . . . . . . . . . . . . . . . . . . . . . . . . . . . . . . Crush 1 | . 1 . . . . . . . . . . . . . . . . . . . . . . . . . . . . . . . Escape Stasis 423 | . . . . . . . . . 70 31 . 72 . . 36 45 . . . 5 . 27 108 25 4 . . . . . . . Rewire 111 | . . . . . . . . . . . . 24 87 . . . . . . . . . . . . . . . . . . . Trap 4 | . . . . . . 4 . . . . . . . . . . . . . . . . . . . . . . . . . . Miscellaneous 8 | . . . . . . . . . . . . . . . . 8 . . . . . . . . . . . . . . . . Route ------- -11/Scrapyard -10/Materials (discovered 5 exits: [*Mat x3] / [*Min x2]) -10/Mines (discovered 2 exits: [*Mat] / *Exi) -10/Exiles (discovered 2 exits: *Min x2) -9/Mines (discovered 2 exits: *Mat x2) -8/Materials (discovered 2 exits: Fac / Gar) -8/Garrison (discovered 3 exits: *Fac x3) -7/Factory (discovered 5 exits: [*Fac x2] / *Sto / [*Low] / Gar) -7/Waste -7/Factory (discovered 7 exits: [*Fac x2] / *Sto x2 / [*Low x2] / Gar) -7/Garrison (discovered 3 exits: *Sto x3) -7/Storage -7/Garrison (discovered 3 exits: *Rec x3) -7/Recycling (discovered 2 exits: *Fac / *Scr) -7/Scraptown -5/Factory (discovered 6 exits: *Fac x2 / Upp x2 / *Ext x2) -5/Extension (discovered 2 exits: *Fac / *Cet) -5/Cetus (discovered 2 exits: *Fac / [*Arc]) -5/Archives (discovered 3 exits: *Fac / *Hub x2) -5/Hub_04(d) (discovered 4 exits: *Fac x4) -4/Factory (discovered 3 exits: *Res x2 / [*Upp]) -4/Waste -4/Factory (discovered 5 exits: *Res / [*Upp x2] / Gar / Gar) -4/Garrison (discovered 3 exits: *Res x3) -3/Research (discovered 4 exits: *Res / *Arm / *Tes x2) -3/Armory (discovered 3 exits: *Res x2 / *Lab) -3/Lab -2/Research (discovered 5 exits: *Acc x3 / *Qua x2) -2/Quarantine (discovered 2 exits: Acc / [*Sec]) -2/Section 7 -1/Access -1/Command -1/Access_0 Subspace History --------- Turn | Location | Event 29 | -11/Scrapyard | Discovered new exit (range 16) 165 | -11/Scrapyard | Entered Materials 345 | -10/Materials | Discovered new exit (range 13) 350 | -10/Materials | Build established: Mutant 776 | -10/Materials | Discovered new exit (range 8) 1012 | -10/Materials | Discovered new exit (range 14) 1379 | -10/Materials | Discovered new exit (range 13) 1795 | -10/Materials | Discovered new exit (range 9) 2275 | -10/Materials | Entered Mines 2372 | -10/Mines | A weapon hastily lodged in a ceiling crevice suddenly fell to the ground 2411 | -10/Mines | Learned Materials stockpile data 2411 | -10/Mines | Discovered new exit (range 10) 2440 | -10/Mines | Escorted by a lone wolf Derelict 2460 | -10/Mines | Learned location of Storage (-7) 2517 | -10/Mines | Assembled infested the area 2959 | -10/Mines | Found a hidden stash of uninstalled traps 2990 | -10/Mines | Learned location of Zion (-7) 3055 | -10/Mines | Discovered new exit (range 5) 3061 | -10/Mines | Entered Exiles 3080 | -10/Exiles | Discovered new exit (range 15) 3098 | -10/Exiles | Met 8R-AWN 3119 | -10/Exiles | Met EX-HEX 3175 | -10/Exiles | Met EX-DEC 3248 | -10/Exiles | Discovered new exit (range 10) 3335 | -10/Exiles | Met EX-BIN 3355 | -10/Exiles | Aligned with FarCom system 3356 | -10/Exiles | Given EX-Vault access code 3407 | -10/Exiles | Opened EX-Vault 3413 | -10/Exiles | Found Potential Leg 3416 | -10/Exiles | Found Potential Leg 3444 | -10/Exiles | Warned to stay clear of 0b10 Research branches 3539 | -10/Exiles | Left Exiles lab with Potential Leg 3539 | -10/Exiles | Entered Mines 3875 | -9/Mines | Core integrity fell below 50% 4015 | -9/Mines | Excavation squad dispatched 4015 | -9/Mines | A large section of the Mines collapsed 4265 | -9/Mines | Excavation squad dispatched 4515 | -9/Mines | Excavation squad dispatched 4545 | -9/Mines | Discovered new exit (range 12) 4629 | -9/Mines | Discovered new exit (range 10) 4734 | -9/Mines | Entered Materials 4734 | -8/Materials | Evolved 4 slots: Propulsion x3, Utility x1 4735 | -8/Materials | Identified exit to Factory 4853 | -8/Materials | Garrison activated, responded to threat 4917 | -8/Materials | Identified exit to Garrison 4955 | -8/Materials | Garrison activated, responded to threat 5567 | -8/Materials | Entered Garrison 5576 | -8/Garrison | Build established: Scavenger-Mutant 5618 | -8/Garrison | Discovered exit to Factory (range 61) 5618 | -8/Garrison | Discovered exit to Factory (range 74) 5618 | -8/Garrison | Discovered exit to Factory (range 45) 5742 | -8/Garrison | Triggered checkpoint 5744 | -8/Garrison | Triggered checkpoint 5806 | -8/Garrison | Spotted B-75 Beast 6069 | -8/Garrison | Installed Relay Interface Framework 6105 | -8/Garrison | Triggered checkpoint 6121 | -8/Garrison | Garrison Relay disabled 6362 | -8/Garrison | Triggered checkpoint 6397 | -8/Garrison | Triggered checkpoint 6501 | -8/Garrison | Expanded RIF knowledge: Signal Jamming 6517 | -8/Garrison | Core integrity fell below 50% 6592 | -8/Garrison | Build established: Bothacker-Mutant 6650 | -8/Garrison | Garrison Relay disabled 6653 | -8/Garrison | Triggered checkpoint 6723 | -8/Garrison | Triggered checkpoint 6731 | -8/Garrison | Garrison Relay disabled 6887 | -8/Garrison | Garrison Relay disabled 7024 | -8/Garrison | Rewired B-75 Beast 7404 | -8/Garrison | Entered Factory 7404 | -7/Factory | Accompanied by 3 allies 7404 | -7/Factory | Evolved 2 slots: Utility x2 7584 | -7/Factory | Discovered new exit (range 11) 7842 | -7/Factory | Build established: Bothacker-Sprinter 8204 | -7/Factory | First assault squad dispatched 8343 | -7/Factory | Discovered new exit (range 9) 8386 | -7/Factory | Fabricated Y-54 Guardian? 8612 | -7/Factory | Identified exit to Garrison 8637 | -7/Factory | Discovered new exit (range 12) 8675 | -7/Factory | Build established: Commander-Sprinter 8681 | -7/Factory | Cargo convoy interrupted 8725 | -7/Factory | Discovered new exit (range 13) 9092 | -7/Factory | Build established: Bothacker-Sprinter 9183 | -7/Factory | Sucked down chute 9183 | -7/Factory | Entered Waste 9189 | -7/Waste | Spotted C-40 Crusher 9192 | -7/Waste | Spotted C-40 Crusher 9192 | -7/Waste | Spotted C-40 Crusher 9192 | -7/Waste | Spotted C-40 Crusher 9198 | -7/Waste | EMP discharged 9198 | -7/Waste | System corruption reached 10% 9199 | -7/Waste | Spotted C-40 Crusher 9199 | -7/Waste | Spotted C-40 Crusher 9199 | -7/Waste | Discovered new exit (range 10) 9202 | -7/Waste | Entered Factory 9474 | -7/Factory | Discovered new exit (range 6) 9475 | -7/Factory | Discovered new exit (range 4) 9506 | -7/Factory | Identified exit to Garrison 9575 | -7/Factory | Fabricated M-13 Machinist? 9689 | -7/Factory | Discovered new exit (range 13) 9695 | -7/Factory | Discovered new exit (range 9) 9933 | -7/Factory | Discovered new exit (range 9) 10787 | -7/Factory | Discovered new exit (range 12) 10939 | -7/Factory | Entered Garrison 10939 | -7/Garrison | Accompanied by 3 allies 10955 | -7/Garrison | Triggered checkpoint 10965 | -7/Garrison | Found embedded Infiltrators 10999 | -7/Garrison | Garrison Relay disabled 11048 | -7/Garrison | Triggered checkpoint 11050 | -7/Garrison | Triggered checkpoint 11085 | -7/Garrison | Triggered checkpoint 11087 | -7/Garrison | Triggered checkpoint 11098 | -7/Garrison | Garrison Relay disabled 11104 | -7/Garrison | Learned Storage security intel 11115 | -7/Garrison | Discovered new exit (range 10) 11120 | -7/Garrison | Triggered checkpoint 11124 | -7/Garrison | Assimilated ARC 4a with formatsys_deep 11149 | -7/Garrison | Triggered checkpoint 11182 | -7/Garrison | Garrison Relay disabled 11187 | -7/Garrison | Discovered new exit (range 88) 11187 | -7/Garrison | Discovered new exit (range 76) 11187 | -7/Garrison | Discovered new exit (range 12) 11198 | -7/Garrison | Expanded RIF knowledge: Coupler Efficiency 11247 | -7/Garrison | Triggered checkpoint 11320 | -7/Garrison | Triggered checkpoint 11327 | -7/Garrison | Garrison Relay disabled 11471 | -7/Garrison | Build established: Commander-Sprinter 11675 | -7/Garrison | Triggered checkpoint 11722 | -7/Garrison | Garrison Relay disabled 11729 | -7/Garrison | Lost 3 allies 11802 | -7/Garrison | Entered Storage 11802 | -7/Storage | Accompanied by 18 allies 11803 | -7/Storage | Build established: Commander-Mutant 11948 | -7/Storage | Identified exit to Garrison 11983 | -7/Storage | Garrison activated, responded to threat 12039 | -7/Storage | Entered Garrison 12039 | -7/Garrison | Accompanied by 13 allies 12043 | -7/Garrison | Lost 6 allies 12079 | -7/Garrison | Triggered checkpoint 12099 | -7/Garrison | Garrison Relay disabled 12104 | -7/Garrison | Triggered checkpoint 12105 | -7/Garrison | Assimilated ARC 4b with formatsys_deep 12126 | -7/Garrison | Lost 4 allies 12150 | -7/Garrison | Triggered checkpoint 12157 | -7/Garrison | Triggered checkpoint 12189 | -7/Garrison | Triggered checkpoint 12233 | -7/Garrison | Lost 5 allies 12244 | -7/Garrison | Discovered new exit (range 10) 12267 | -7/Garrison | Discovered new exit (range 3) 12287 | -7/Garrison | Triggered checkpoint 12291 | -7/Garrison | Discovered new exit (range 8) 12305 | -7/Garrison | Expanded RIF knowledge: Threat Obfuscation 12356 | -7/Garrison | Triggered checkpoint 12387 | -7/Garrison | Garrison Relay disabled 12411 | -7/Garrison | Triggered checkpoint 12425 | -7/Garrison | Triggered checkpoint 12454 | -7/Garrison | Triggered checkpoint 12474 | -7/Garrison | Build established: Commander-Sprinter 12613 | -7/Garrison | Triggered checkpoint 12658 | -7/Garrison | Garrison Relay disabled 12726 | -7/Garrison | P-60 Hacker assimilated allied 9R-H8Q(x) 12761 | -7/Garrison | Garrison Relay disabled 12764 | -7/Garrison | Garrison Relay disabled 12768 | -7/Garrison | Garrison Relay disabled 12771 | -7/Garrison | Garrison Relay disabled 12784 | -7/Garrison | Lost 7 allies 13087 | -7/Garrison | Build established: Mutant 13161 | -7/Garrison | Entered Recycling 13161 | -7/Recycling | Accompanied by 1 ally 13297 | -7/Recycling | Lost 4 allies 13486 | -7/Recycling | Build established: Commander-Mutant 13611 | -7/Recycling | Lost 3 allies 14017 | -7/Recycling | Discovered new exit (range 15) 14081 | -7/Recycling | P-60 Hacker assimilated allied Commando 4f 14190 | -7/Recycling | Scanned before Scraplab entrance 14228 | -7/Recycling | Entered Scraplab 14420 | -7/Recycling | Build established: Botlord-Mutant 15017 | -7/Recycling | Discovered new exit (range 3) 15031 | -7/Recycling | Entered Scraptown 15031 | -7/Scraptown | Accompanied by 20 allies 15031 | -7/Scraptown | System corruption cleaned by C-Scrubber 15763 | -7/Scraptown | Discovered new exit (range 5) 15915 | -7/Scraptown | Visited SPCMW 15955 | -7/Scraptown | Visited Scrapoid Research Area 16050 | -7/Scraptown | Visited Bundlers 16136 | -7/Scraptown | Visited Junk Repository 16157 | -7/Scraptown | Heard Great Nut preacher, LISTEN AND RECITE! 16183 | -7/Scraptown | Turned away by UFD registrar 16183 | -7/Scraptown | Turned away by UFD registrar 16207 | -7/Scraptown | Visited Cyclists 16244 | -7/Scraptown | Visited CR-KLE's Repair Center 16256 | -7/Scraptown | CR-KLE repaired 4 parts 16295 | -7/Scraptown | Visited Shadow of the Wyrm 16900 | -7/Scraptown | Build established: Commander-Mutant 17394 | -7/Scraptown | Build established: Botlord-Mutant 17886 | -7/Scraptown | Entered Factory 17886 | -5/Factory | Accompanied by 20 allies 17886 | -5/Factory | Evolved 4 slots: Propulsion x1, Utility x3 17969 | -5/Factory | Identified exit to Upper Caves 17969 | -5/Factory | Identified exit to Extension 18138 | -5/Factory | Lost 7 allies 18186 | -5/Factory | Fabricated M-13 Machinist? 18250 | -5/Factory | Repaired Cld. VTOL Module 18286 | -5/Factory | Repaired Cld. VTOL Module 18809 | -5/Factory | Fabricated P-70 Sage? 18816 | -5/Factory | Central database locked down 18939 | -5/Factory | Build established: Commander-Sprinter 18949 | -5/Factory | Discovered new exit (range 4) 18971 | -5/Factory | Cargo convoy interrupted 19147 | -5/Factory | Repaired Cld. VTOL Module 20113 | -5/Factory | Assimilated ARC 6a with formatsys_deep 20934 | -5/Factory | Discovered new exit (range 12) 21265 | -5/Factory | Entered Extension 21265 | -5/Extension | Accompanied by 14 allies 21442 | -5/Extension | Rescued a captive Derelict 21443 | -5/Extension | Rescued a captive Derelict 21491 | -5/Extension | Rescued a captive Derelict 21493 | -5/Extension | Rescued a captive Derelict 21596 | -5/Extension | Rescued a captive Derelict 21623 | -5/Extension | Repaired Cld. Nuclear Pulse Thruster 21634 | -5/Extension | Rescued a captive Derelict 21714 | -5/Extension | Learned location of 2 exits from Research 21857 | -5/Extension | Identified exit to Factory 21886 | -5/Extension | Learned Research terminal intel 21927 | -5/Extension | Learned Quarantine emergency access door positions 21978 | -5/Extension | Learned Testing garrison access intel 21995 | -5/Extension | Spotted B-75 Beast 22023 | -5/Extension | Allies destroyed B-75 Beast 22024 | -5/Extension | Spotted B-75 Beast 22035 | -5/Extension | Destroyed B-75 Beast 22066 | -5/Extension | Lost 7 allies 22175 | -5/Extension | Rescued a captive Derelict 22177 | -5/Extension | Rescued a captive Derelict 22178 | -5/Extension | Rescued A7 22190 | -5/Extension | Rescued a captive Derelict 22192 | -5/Extension | Rescued a captive Derelict 22207 | -5/Extension | Rescued a captive Derelict 22207 | -5/Extension | Rescued a captive Derelict 22241 | -5/Extension | Rescued a captive Derelict 22256 | -5/Extension | Rescued a captive Derelict 22259 | -5/Extension | Rescued a captive Derelict 22264 | -5/Extension | Discovered new exit (range 6) 22856 | -5/Extension | Entered Cetus 22856 | -5/Cetus | Accompanied by 33 allies (A7) 22861 | -5/Cetus | Acquired a Cetus Manufacturing Module code from A7 22861 | -5/Cetus | Spotted Cetus Guard 22861 | -5/Cetus | Spotted Cetus Guard 22867 | -5/Cetus | Spotted Cetus Guard 22867 | -5/Cetus | Spotted Cetus Guard 22874 | -5/Cetus | Destroyed Cetus Guard 22917 | -5/Cetus | Started Cetus Manufacturing Module 22925 | -5/Cetus | Lost 4 allies 22929 | -5/Cetus | Escorted A7 to Cetus Mainframe 22942 | -5/Cetus | Manufactured an Enhanced Grunt 22943 | -5/Cetus | Discovered new exit (range 16) 22967 | -5/Cetus | Manufactured an Enhanced Grunt 22992 | -5/Cetus | Manufactured an Enhanced Grunt 23017 | -5/Cetus | Manufactured an Enhanced Grunt 23042 | -5/Cetus | Manufactured an Enhanced Grunt 23085 | -5/Cetus | Spotted Cetus Guard 23088 | -5/Cetus | Spotted Cetus Guard 23089 | -5/Cetus | Spotted Cetus Guard 23090 | -5/Cetus | Spotted Cetus Guard 23105 | -5/Cetus | Allies destroyed Cetus Guard 23106 | -5/Cetus | Allies destroyed Cetus Guard 23109 | -5/Cetus | Allies destroyed Cetus Guard 23113 | -5/Cetus | Allies destroyed Cetus Guard 23118 | -5/Cetus | Discovered exit to Factory (range 15) 23120 | -5/Cetus | Met Revision 17 23129 | -5/Cetus | Lost 9 allies 23181 | -5/Cetus | Entered Archives 23181 | -5/Archives | Accompanied by 25 allies (A7) 23186 | -5/Archives | Received a hacking code to weaken MAIN.C 23234 | -5/Archives | Discovered exit to Factory (range 15) 23272 | -5/Archives | Discovered new exit (range 13) 23288 | -5/Archives | Discovered new exit (range 13) 23630 | -5/Archives | Entered Hub_04(d) 23630 | -5/Hub_04(d) | Accompanied by 27 allies 23699 | -5/Hub_04(d) | Lost 3 allies 23854 | -5/Hub_04(d) | Network Hub disabled 23854 | -5/Hub_04(d) | Network Hub disabled 23857 | -5/Hub_04(d) | Network Hub disabled 23878 | -5/Hub_04(d) | Network Hub disabled 23920 | -5/Hub_04(d) | Lost 8 allies 23938 | -5/Hub_04(d) | Entered Factory 23938 | -4/Factory | Accompanied by 4 allies 23938 | -4/Factory | Evolved 2 slots: Propulsion x1, Utility x1 23971 | -4/Factory | Discovered new exit (range 12) 24137 | -4/Factory | Discovered new exit (range 13) 24288 | -4/Factory | Discovered new exit (range 7) 24492 | -4/Factory | Fabricated Impulse Thruster Array? 24600 | -4/Factory | Cargo convoy interrupted 24664 | -4/Factory | Spotted B-86 Titan 24844 | -4/Factory | Build established: Botlord-Sprinter 24929 | -4/Factory | Found Exp. Terrain Scan Processor 25022 | -4/Factory | Fabricated Imp. Arc Projector? 25428 | -4/Factory | Found Exp. Force Field 25772 | -4/Factory | Fabricated M-30 Cleanser? 25877 | -4/Factory | Fabricated S-27 Virus? 25880 | -4/Factory | Fabricated S-27 Virus? 25996 | -4/Factory | Sucked down chute 25996 | -4/Factory | Entered Waste 26000 | -4/Waste | Spotted C-40 Crusher 26001 | -4/Waste | Spotted C-40 Crusher 26001 | -4/Waste | Spotted C-40 Crusher 26002 | -4/Waste | Spotted C-40 Crusher 26007 | -4/Waste | Met Warlord forces unprepared to attack 26011 | -4/Waste | EMP discharged 26012 | -4/Waste | Allies destroyed C-40 Crusher 26021 | -4/Waste | Spotted C-40 Crusher 26023 | -4/Waste | Spotted C-40 Crusher 26028 | -4/Waste | Discovered new exit (range 10) 26078 | -4/Waste | Allies destroyed C-40 Crusher 26099 | -4/Waste | Entered Factory 26099 | -4/Factory | Accompanied by 9 allies 26205 | -4/Factory | Garrison activated, responded to threat 26242 | -4/Factory | Lost 3 allies 26256 | -4/Factory | Fabricated S-27 Virus? 26257 | -4/Factory | Spotted B-86 Titan 26544 | -4/Factory | Discovered new exit (range 20) 26549 | -4/Factory | Assimilated ARC 7a with formatsys_deep 26612 | -4/Factory | Garrison activated, responded to threat 26659 | -4/Factory | Discovered new exit (range 17) 26820 | -4/Factory | Discovered new exit (range 24) 26851 | -4/Factory | Identified exit to Garrison 27026 | -4/Factory | Build established: Botlord-Scout 27043 | -4/Factory | Identified exit to Garrison 27110 | -4/Factory | Fabricated Adv. Coolant Injector? 27147 | -4/Factory | Fabricated S-27 Virus? 27188 | -4/Factory | Lost 4 allies 27415 | -4/Factory | Build established: Botlord-Sprinter 27592 | -4/Factory | Repaired Cld. Nuclear Pulse Thruster? 27683 | -4/Factory | Repaired Cld. VTOL Module 28242 | -4/Factory | Fabricated S-27 Virus? 28272 | -4/Factory | Fabricated S-27 Virus? 28393 | -4/Factory | Fabricated S-27 Virus? 28460 | -4/Factory | Entered Garrison 28460 | -4/Garrison | Accompanied by 2 allies 28464 | -4/Garrison | Triggered checkpoint 28478 | -4/Garrison | Garrison Relay disabled 28502 | -4/Garrison | Triggered checkpoint 28534 | -4/Garrison | Triggered checkpoint 28545 | -4/Garrison | Triggered checkpoint 28595 | -4/Garrison | Garrison Relay disabled 28614 | -4/Garrison | Discovered new exit (range 10) 28623 | -4/Garrison | Expanded RIF knowledge: Threat Obfuscation 28690 | -4/Garrison | Triggered checkpoint 28706 | -4/Garrison | Triggered checkpoint 28707 | -4/Garrison | Assimilated ARC 7b with formatsys_deep 28762 | -4/Garrison | Garrison Relay disabled 28776 | -4/Garrison | Discovered new exit (range 8) 28778 | -4/Garrison | Discovered new exit (range 50) 28778 | -4/Garrison | Discovered new exit (range 9) 28778 | -4/Garrison | Discovered new exit (range 56) 28800 | -4/Garrison | Triggered checkpoint 29226 | -4/Garrison | Build established: Botlord-Mutant 29367 | -4/Garrison | Entered Research 29367 | -3/Research | Accompanied by 17 allies 29367 | -3/Research | Evolved 2 slots: Utility x2 29368 | -3/Research | Identified exit to Testing 29368 | -3/Research | Identified exit to Armory 29369 | -3/Research | Loaded intel: 20 terminal locations 29567 | -3/Research | Revision forces began assault on 0b10 29584 | -3/Research | Discovered exit to Testing (range 6) 29600 | -3/Research | Met up with Revision 17++ 29621 | -3/Research | Discovered new exit (range 16) 29667 | -3/Research | Build established: Commander-Sprinter 30012 | -3/Research | Repaired Centrium Medium Armor Plating? 30067 | -3/Research | Research terminal network offline 30259 | -3/Research | Spotted B-86 Titan 30424 | -3/Research | Fabricated S-43 Plague (x4) 30510 | -3/Research | Fabricated P-70 Sage? 30554 | -3/Research | Fabricated S-10 Pest? 30637 | -3/Research | Spotted Striker 30639 | -3/Research | Allies destroyed Striker 30647 | -3/Research | Lost 3 allies 30671 | -3/Research | Fabricated S-43 Plague (x4) 31038 | -3/Research | Spotted Executioner 31050 | -3/Research | Sage 8b assimilated hostile S-43 Plague 31052 | -3/Research | Spotted Striker 31086 | -3/Research | Lost 20 allies 31151 | -3/Research | Entered Armory 31152 | -3/Armory | Met VL-GR5, who suggested a friendly competition 31155 | -3/Armory | Identified exit to Research 31206 | -3/Armory | Fabricated P-70 Sage (x2) 31222 | -3/Armory | Found Unknown Launcher 31222 | -3/Armory | Identified Gamma Bomb Array 31237 | -3/Armory | Fabricated P-70 Sage? 31275 | -3/Armory | Fabricated P-70 Sage (x2) 31305 | -3/Armory | Fabricated P-70 Sage? 31348 | -3/Armory | Fabricated P-70 Sage? 31385 | -3/Armory | Fabricated P-70 Sage? 31546 | -3/Armory | Lost 8 allies 31562 | -3/Armory | Sage 8e assimilated hostile W-44 Eye 31621 | -3/Armory | Lost 3 allies 31625 | -3/Armory | VL-GR5 left a parting gift on exiting Armory 31654 | -3/Armory | Found Prototype Energy Cannon 31696 | -3/Armory | Fabricated Y-54 Guardian? 31805 | -3/Armory | Fabricated P-70 Sage? 31892 | -3/Armory | Build established: Bothacker-Sprinter 31909 | -3/Armory | Discovered new exit (range 4) 31912 | -3/Armory | Entered Lab 31912 | -3/Lab | Discovered exit to Research (range 10) 31916 | -3/Lab | Unable to decrypt terminal 31916 | -3/Lab | Entered Research 31916 | -2/Research | Evolved 2 slots: Utility x2 31936 | -2/Research | Spotted B-90 Cyclops 31954 | -2/Research | Repaired Impulse Thruster Array? 31965 | -2/Research | Identified exit to Quarantine 31996 | -2/Research | Found Prototype Protection 31996 | -2/Research | Identified Centrium Heavy Armor Plating 32035 | -2/Research | Repaired Impulse Thruster Array 32076 | -2/Research | Identified exit to Access 32351 | -2/Research | Fabricated Centrium Medium Armor Plating? 32364 | -2/Research | Fabricated Lrn. Terrain Scanner (x2) 32389 | -2/Research | Fabricated Cld. VTOL Module? 32433 | -2/Research | Fabricated Cld. VTOL Module (x1) 32476 | -2/Research | Assimilated ARC 9a with formatsys_deep 32493 | -2/Research | Fabricated Exp. Force Field (x1) 32545 | -2/Research | Fabricated P-70 Sage? 32838 | -2/Research | Identified Multinova Projection Cannon 32844 | -2/Research | Entered Quarantine 32845 | -2/Quarantine | Maximum security lockdown engaged 32852 | -2/Quarantine | Found Alien Artifact 32875 | -2/Quarantine | Found Alien Slashing Weapon 32875 | -2/Quarantine | Identified Sigix Broadsword 32926 | -2/Quarantine | Discovered exit to Access (range 23) 32927 | -2/Quarantine | Found Alien Artifact 32933 | -2/Quarantine | Found Alien Artifact 32944 | -2/Quarantine | Found Alien Artifact 32963 | -2/Quarantine | Spotted Fortress 33022 | -2/Quarantine | Found Alien Impact Weapon 33028 | -2/Quarantine | Found Alien Artifact 33095 | -2/Quarantine | Discovered new exit (range 5) 33096 | -2/Quarantine | Entered Section 7 33097 | -2/Section 7 | Maximum security lockdown engaged 33103 | -2/Section 7 | System corruption reached 10% 33122 | -2/Section 7 | Found Alien Artifact 33143 | -2/Section 7 | Spotted S7 Guard 33147 | -2/Section 7 | Found Alien Artifact 33151 | -2/Section 7 | Discovered exit to Access (range 21) 33161 | -2/Section 7 | Found Alien Artifact 33176 | -2/Section 7 | Identified Dimensional Node Initializer 33176 | -2/Section 7 | Initialized slip node 33209 | -2/Section 7 | Found Integrity Redistributor 33236 | -2/Section 7 | Entered Access 33236 | -1/Access | Evolved 2 slots: Power x1, Weapon x1 33272 | -1/Access | Identified Integrated Thermoelectric Network 33272 | -1/Access | Identified Integrated Mediator 33272 | -1/Access | Identified Integrated Dissipator 33273 | -1/Access | Installed Integrated Thermoelectric Network, gained heat-energy exchange potential 33275 | -1/Access | Installed Integrated Mediator, increased core attachment efficiency 33277 | -1/Access | Installed Integrated Dissipator, increased core heat dissipation (+20) 33375 | -1/Access | Spotted B-99 Colossus 33380 | -1/Access | Discovered new exit (range 24) 33395 | -1/Access | Entered Command 33531 | -1/Command | Repaired Mic. Antimatter Reactor 33561 | -1/Command | Repaired Cld. Nuclear Pulse Thruster 33605 | -1/Command | Found Unknown Device 33605 | -1/Command | Identified Quantum Capacitor 33642 | -1/Command | Assimilated ARC 10a with formatsys_deep 33748 | -1/Command | Identified Core Stripper 33755 | -1/Command | Identified Subatomic Replicator 33755 | -1/Command | Used Subatomic Replicator to create Alien Artifact 33779 | -1/Command | Spotted M Guard 33779 | -1/Command | Spotted M Guard 33779 | -1/Command | Spotted Combat Programmer 33791 | -1/Command | Spotted Combat Programmer 33791 | -1/Command | Destroyed Combat Programmer 33795 | -1/Command | Destroyed Combat Programmer 33889 | -1/Command | Used Integrity Redistributor, redistributed integrity from core (-95) 33914 | -1/Command | Met MAIN.C 33914 | -1/Command | Hacked MAIN.C using A7's code 33918 | -1/Command | 0b10 Conduit disabled 33990 | -1/Command | Identified Core Reset Matrix 33990 | -1/Command | Used Core Reset Matrix 34000 | -1/Command | Warped through subspace to slip node 34000 | -1/Command | Discovered new exit (range 3) 34001 | -1/Command | Entered Access_0 34002 | -1/Access_0 | Sensed 3 artifacts in vicinity 34002 | -1/Access_0 | Met Architect 34031 | -1/Access_0 | A6 warped into view 34043 | -1/Access_0 | Destroyed A2 34047 | -1/Access_0 | Extracted Singularity Gate Test 138-C access codes from A2's data core 34058 | -1/Access_0 | Started Test 138-B, establishing a local singularity 34058 | -1/Access_0 | Started Test 138-C, cascade imminent 34058 | *** | Destroyed Tau Ceti IV! Last Messages --------------- 34047_ Acquired data core, extracted Singularity Gate Test 138-C access codes. 34057_ Cld. Q-thruster destroyed. 34057_ Cld. Q-thruster burned out. 34058_ Connecting with Gate Controls... 34058_ Current location identified: Access_0 >>Gate Test 138-A Running Singularity Gate diagnostics... All systems nominal. >>Gate Test 138-B Preparing Singularity Gate activation... Stable singularity established. >>Gate Test 138-C Initiating Test 138-C... Warning: Experimental formulas incomplete. Potential effects include instability. Repeat command to confirm test. >>Gate Test 138-C Initiating Test 138-C... Applying incomplete calculations.... INSTABILITY DETECTED, CASCADE IMMINENT. Map ----- +----------------------------------------------------+ | ????????????????####### #???# ????????# ##? | | ???????????????## #???# #?? #?????????# ##?# | | ??????????????## #??# ### #?????????# ### | | ??????????# ## ### #?????????# ## | | ???????? #?????????# # # | | ???????? ### ##?????????# # # | | ??????????????????## ##?????????# # ## | | ????/??????????????# ####??????# ### | | ???????????????????# #??????# ?? | | ???????????????????# #?????# # ?? | | ???????????????????# # ## ##?????# ?# ? | | ???????????????????# ## ##??###??????# ?? ? | | ??????????????###### ######????????????##??### | | ??????????????#""""" """""#??????????????????? | | ???????????????#"""" """"#???????????????????? | | ??????????????##" "##??????????????????? | | ??????????????#"" ""#??????????????????? | | ??????????????#"" ""#??????????????????? | | ??????????????##" "##??????????????????? | | ???????????????#" "#???????????????????? | | ???????????????#" "#???????????????????? | | ???????????????#" "#???????????????????? | | ??????????????##" "##??????????????????? | | ??????????????#"" ""#??????????????????? | | ??????????????#"" ""#??????????????????? | | ??????????????##" @ "##??????????????????? | | ???????????????#"""" A""#???????????????????? | | ???????????????""""" """""#??????????????????? | | ????????????????#### ######??????????????????? | | ???????????????????# #???????????????????????? | | ???????????????????# #???????????????????????? | | ???????????????????# #???????????????????????? | | ???????????????????# ????????????????????????? | | ???????????????????# ????????????????????????? | | ???????????????????# ????????????????????????? | | ???????????????????# ????????????????????????? | | ???????????????????# ?????????????????????????? | | ???????????????????# ?????????????????????????? | | ???????????????????# ?????????????????????????? | | ????????????????????? ???????????????????????????? | | ?????????????????????????????????????????????????? | | ?????????????????????????????????????????????????? | | ?????????????????????????????????????????????????? | | ?????????????????????????????????????????????????? | | ?????????????????????????????????????????????????? | | ?????????????????????????????????????????????????? | | ?????????????????????????????????????????????????? | | ????!????????????????????????????????????????????? | | ?????????????????????????????????????????????????? | | ?????????????????????????????????????????????????? | +----------------------------------------------------+ Best States ------------- Heat Dissipation 72 Energy Generation 45 Energy Capacity 430 Matter Stores 300 Matter Capacity 300 Sight Range 16 Robot Scan Range 14 Terrain Scan Range 24 Terrain Scan Density 1010 Armor Coverage 225 Weapon Shielding 66 Melee Speed Boost 20 Phase Shifting 15 Evasion (%) 93 Targeting Accuracy 8 Armor Integrity Analysis 40 Recoil Reduction 2 Offensive Hacking 48 Defensive Hacking 22 Relay Coupler Types 5 Relay Coupler Value 130 Authchip Count 16 Trap Extractor Capacity 4 Item Schematics ----------------- None Robot Schematics ------------------ None Fabricated ------------ Y-54 Guardian | x2 | -7/Factory | Preloaded, Authchip M-13 Machinist | x1 | -7/Factory | Authchip M-13 Machinist | x1 | -5/Factory P-70 Sage | x2 | -5/Factory Impulse Thruster Array | x1 | -4/Factory Imp. Arc Projector | x2 | -4/Factory M-30 Cleanser | x1 | -4/Factory | Preloaded S-27 Virus | x4 | -4/Factory S-27 Virus | x4 | -4/Factory S-27 Virus | x4 | -4/Factory Adv. Coolant Injector | x2 | -4/Factory | Preloaded S-27 Virus | x4 | -4/Factory S-27 Virus | x4 | -4/Factory S-27 Virus | x4 | -4/Factory S-27 Virus | x4 | -4/Factory S-43 Plague | x4 | -3/Research | Authchip P-70 Sage | x2 | -3/Research | Authchip S-10 Pest | x4 | -3/Research | Authchip S-43 Plague | x4 | -3/Research | Authchip P-70 Sage | x2 | -3/Armory | Authchip P-70 Sage | x2 | -3/Armory | Authchip P-70 Sage | x2 | -3/Armory | Authchip P-70 Sage | x2 | -3/Armory | Authchip P-70 Sage | x2 | -3/Armory | Authchip P-70 Sage | x2 | -3/Armory | Authchip Y-54 Guardian | x2 | -3/Armory | Authchip P-70 Sage | x2 | -3/Armory | Authchip Centrium Medium Armor Plating | x1 | -2/Research | Authchip Lrn. Terrain Scanner | x2 | -2/Research | Authchip Cld. VTOL Module | x1 | -2/Research | Authchip Cld. VTOL Module | x1 | -2/Research | Authchip Exp. Force Field | x1 | -2/Research | Authchip P-70 Sage | x2 | -2/Research | Authchip Alien Tech Used ----------------- Sigix Broadsword Dimensional Node Initializer Integrated Thermoelectric Network Integrated Mediator Integrated Dissipator Core Stripper Subatomic Replicator Integrity Redistributor Core Reset Matrix Supercharged TR Achievements -------------- 404 Poison In The Code Challenges ------------ None Game ------ Seed MassScrapoidSink Manual? 0 Play Time 16:23:17 Cumulative 359.0 hours Start 2025.03.05 @ 23:03:35 End 2025.03.07 @ 08:11:13 Sessions 13 Manual Loads 0 Difficulty Rogue Special Mode None Game No. 53 Rogue 53 Adventurer 0 Explorer 0 Win Type 5 Total 14 Types 4/0/5/1/1/2/0/1/0 Lore% 57 Gallery% 73 Achievement% 68 Wizard Run 0 Options --------- Layout 0 ASCII 0 Keyboard 1 Movement Arrows Keybinds 0 Fullscreen 1 Font 12/Cog Map View 83x54 Zoom Use 0% Tactical HUD 1 Map Filters NONE Filters NONE Steam 0 RUN: 20b00fd6-2311-4958-aa3d-afb419c2f572